{"text_format":"1","workbook":"xlsx","n_sheets":10,"sheets":["XXXXX","OP PLAN","Roll Weeks","14 CY Downweeks","Roll weeks macro","Module1","15 CY Downweeks","16 CY Downweeks","OP LTR","17 CY Downweeks"],"not_rendered":{"charts":0,"images":14,"macros":1,"external_links":0,"defined_names":32,"comments":0,"pivot_tables":0},"unopened":[{"sheet":"Roll weeks macro","index":4,"reason":"part_missing"},{"sheet":"Module1","index":5,"reason":"part_missing"}],"bounds":{"document_bytes":16777216,"sheet_cells":100000,"rows_first":2000,"rows_last":500,"rows_between":2000,"halvings":0,"cell_chars":16384,"cell_head_chars":4096},"cells_cut":0,"cells_raw":0,"read":"whole","date_system":"1900"}

{"sheet":"XXXXX","index":0,"n_rows":0,"n_cols":0,"rows_kept":0,"cut":false,"hidden":true,"merged":[]}

{"sheet":"OP PLAN","index":1,"n_rows":194,"n_cols":398,"rows_kept":194,"cut":false,"hidden":false,"merged":[[131,396,131,397],[131,390,131,391],[131,364,131,365],[131,386,131,387],[131,384,131,385],[131,382,131,383],[131,380,131,381],[131,378,131,379],[131,376,131,377],[131,374,131,375],[131,372,131,373],[131,370,131,371],[131,368,131,369],[131,366,131,367],[131,388,131,389],[131,392,131,393],[131,394,131,395],[139,103,140,395],[169,83,171,83],[177,83,178,83],[131,177,131,178],[131,173,131,174],[131,175,131,176],[131,163,131,164],[165,88,165,90],[161,82,164,92],[131,102,133,102],[131,103,131,104],[131,107,131,108],[131,109,131,110],[131,115,131,116],[131,121,131,122],[131,153,131,154],[131,169,131,170],[177,82,184,82],[166,82,168,82],[167,83,168,83],[131,147,131,148],[131,127,131,128],[131,191,131,192],[131,327,131,328],[193,82,205,92],[174,83,176,83],[188,83,189,83],[131,145,131,146],[131,113,131,114],[131,117,131,118],[131,161,131,162],[131,119,131,120],[131,137,131,138],[131,123,131,124],[131,133,131,134],[131,129,131,130],[131,131,131,132],[131,159,131,160],[131,155,131,156],[169,82,176,82],[185,82,192,82],[131,111,131,112],[190,83,192,83],[179,83,180,83],[181,83,184,83],[131,125,131,126],[185,83,186,83],[172,83,173,83],[131,245,131,246],[131,321,131,322],[131,305,131,306],[131,323,131,324],[131,325,131,326],[131,233,131,234],[131,229,131,230],[131,291,131,292],[131,279,131,280],[131,309,131,310],[131,281,131,282],[131,275,131,276],[131,297,131,298],[131,189,131,190],[130,102,130,386],[131,345,131,346],[131,343,131,344],[131,315,131,316],[131,299,131,300],[131,143,131,144],[131,141,131,142],[131,313,131,314],[131,311,131,312],[131,149,131,150],[131,271,131,272],[131,249,131,250],[131,235,131,236],[131,195,131,196],[131,193,131,194],[131,199,131,200],[131,187,131,188],[131,197,131,198],[131,287,131,288],[131,277,131,278],[131,207,131,208],[131,329,131,330],[131,215,131,216],[131,171,131,172],[131,165,131,166],[131,183,131,184],[131,293,131,294],[131,251,131,252],[131,213,131,214],[131,205,131,206],[131,139,131,140],[131,179,131,180],[131,181,131,182],[131,185,131,186],[131,241,131,242],[131,253,131,254],[131,283,131,284],[131,221,131,222],[131,223,131,224],[131,209,131,210],[131,237,131,238],[131,219,131,220],[131,225,131,226],[131,217,131,218],[131,227,131,228],[131,261,131,262],[131,211,131,212],[131,135,131,136],[131,167,131,168],[1,1,1,40],[1,44,1,74],[115,0,115,40],[4,41,4,45],[3,3,3,11],[4,3,4,11],[65,85,65,93],[76,84,76,88],[83,30,87,39],[88,30,89,39],[4,12,4,40],[131,105,131,106],[131,157,131,158],[131,203,131,204],[131,151,131,152],[131,349,131,350],[131,347,131,348],[131,231,131,232],[131,285,131,286],[131,257,131,258],[131,267,131,268],[131,255,131,256],[131,265,131,266],[131,263,131,264],[131,259,131,260],[131,247,131,248],[131,201,131,202],[131,295,131,296],[131,273,131,274],[131,269,131,270],[131,289,131,290],[131,243,131,244],[131,239,131,240],[131,335,131,336],[131,341,131,342],[131,303,131,304],[131,307,131,308],[131,361,131,362],[131,357,131,358],[131,351,131,352],[131,359,131,360],[131,355,131,356],[131,319,131,320],[131,333,131,334],[131,301,131,302],[131,317,131,318],[131,337,131,338],[131,353,131,354],[131,339,131,340],[131,331,131,332]]}
[" ",null,null,null,null,null,null,null,null,null,null,null,null,null,null,null,null,null,null,null,null,null,null,null,null,null,null,null,null,null,null,null,null,null,null,null,null,null,null,null,null,null,null,null,null,null,null,null,null,null,null,null,null,null,null,null,null,null,null,null,null,null,null,null,null,null,null,null,null,null,null,null,null,null,null,null,null,null,null,null,null,null,null,null,null,null,null,null,null,null,null,null,null,null,null,null,null,null,null,null,null,null,null,null,null,null,null,null,null,null,null,null,null,null,null,null,null,null,null,null,null,null,null,null,null,null,null,null,null,null,null,null,null,null,null,null,null,null,null,null,null,null,null,null,null,null,null,null,null,null,null,null,null,null,null,null,null,null,null,null,null,null,null,null,null,null,null,null,null,null,null,null,null,null,null,null,null,null,null,null,null,null,null,null,null,null,null,null,null,null,null,null,null,null,null,null,null,null,null,null,null,null,null,null,null,null,null,null,null,null,null,null,null,null,null,null,null,null,null,null,null,null,null,null,null,null,null,null,null,null,null,null,null,null,null,null,null,null,null,null,null,null,null,null,null,null,null,null,null,null,null,null,null,null,null,null,null,null,null,null,null,null,null,null,null,null,null,null,null,null,null,null,null,null,null,null,null,null,null,null,null,null,null,null,null,null,null,null,null,null,null,null,null,null,null,null,null,null,null,null,null,null,null,null,null,null,"`",null,"`",null,"`",null,"`",null,"`"]
["2017-08-14"," Program  # 847-4  Plant Operating Plan Weekly Summary ",null,null,null,null,null,null,null,null,null,null,null,null,null,null,null,null,null,null,null,null,null,null,null,null,null,null,null,null,null,null,null,null,null,null,null,null,null,null,null,{"$f":"A2","v":"2017-08-14"},null,null,{"$f":"B2","v":" Program  # 847-4  Plant Operating Plan Weekly Summary "}]
[]
[null,null,null,"Customer Orders Scheduled"]
[null,null,null,"for Production",null,null,null,null,null,null,null,null,"Volumes Committed to Sales and Dealers"]
[null,null,null,"C",null,null,null,null,null,"C",null,null,"UC",null,null,"M",null,null,null,null,null,null,null,null,null,null,null,"C",null,null,null,null,null,null,null,null,null,null,null,"U",null,null,null,null,null,null,null,"U M",null,null,null,null,null,null,null,null,null,null,null,null,null,null,"U M C",null,null,"U M C",null,null,null,null,null,"U"]
[null,null,null,"08/14",null,null,"08/21",null,null,"08/28",null,null,"09/04",null,null,"09/11",null,null,"09/18",null,null,"09/25",null,null,"10/02",null,null,"10/09",null,null,"10/16",null,null,"10/23",null,null,"10/30",null,null,"11/06",null,null,null,null,"11/13",null,null,"11/20",null,null,"11/27",null,null,"12/04",null,null,"12/11",null,null,"12/18",null,null,"12/25",null,null,"01/01",null,null,"01/08",null,null,"01/15",null,null,"01/22",null,null,"01/29"]
["U.S. / Canada / Mexico","JPH",null,"M-F","Sa/Su",null,"M-F","Sa/Su",null,"M-F","Sa/Su",null,"M-F","Sa/Su",null,"M-F","Sa/Su",null,"M-F","Sa/Su",null,"M-F","Sa/Su",null,"M-F","Sa/Su",null,"M-F","Sa/Su",null,"M-F","Sa/Su",null,"M-F","Sa/Su",null,"M-F","Sa/Su",null,"M-F","Sa/Su","U.S./Canada/Mexico","JPH",null,"M-F","Sa/Su",null,"M-F","Sa/Su",null,"M-F","Sa/Su",null,"M-F","Sa/Su",null,"M-F","Sa/Su",null,"M-F","Sa/Su",null,"M-F","Sa/Su",null,"M-F","Sa/Su",null,"M-F","Sa/Su",null,"M-F","Sa/Su",null,"M-F","Sa/Su",null,"M-F","Sa/Su"]
[]
[]
["Fiesta - Cuautitlan",35,null,"DW",null,null,44,null,null,45,null,null,45,null,null,45,null,null,"DW",null,null,44,null,null,45,null,null,45,null,null,"DW",null,null,45,null,null,45,null,null,"DW",null,{"$f":"A11","v":"Fiesta - Cuautitlan"},"35.0",null,45,null,null,36,null,null,45,null,null,45,null,null,45,null,null,45,null,null,"HOL",null,null,27,9,null,45,null,null,45,9,null,45,null,null,45,9]
["        Matl. Prot.                   (1S)    ",null,null,null,null,null,null,null,null,null,null,null,null,null,null,null,null,null,null,null,null,null,null,null,null,null,null,null,null,null,null,null,null,null,null,null,null,null,null,null,null,"        Matl. Prot.                   (1S)    ",null,null,null,null,null,null,null,null,null,null,null,"D)",null,null,"G)"]
["Vehicle Schedule @ MPW",null,null,null,null,null,null,null,null,null,null,null,null,null,null,null,null,null,null,null,null,null,null,null,null,null,null,null,null,null,null,null,null,null,null,null,null,null,null,null,null,"Vehicle Schedule @ MPW",null,null,null,null,null,null,null,null,null,null,null,null,null,null,null,null,null,null,null,null,null,null,null,null,null,null,null,null,null,"Fiesta"]
["Fusion / MKZ - Hermosillo","63.0",null,105,null,null,89,null,null,89,null,null,85,null,null,68,null,null,"D/W",null,null,83,null,null,85,null,null,84,null,null,85,null,null,84,null,null,"DW",null,null,84,null,"Fusion / MKZ - Hermosillo","63.0",null,85,null,null,67,null,null,85,null,null,85,null,null,85,null,null,50,null,null,"HOL",null,null,83,21,null,107,13,null,68,null,null,107,19,null,"DW",null,null,null,null,null,"  "]
["          Matl. Prot.                (3S)",null,null,null,null,null,null,null,null,null,null,null,"G/ B) Fusion",null,null,null,null,null,null,null,null,null,null,null,null,null,null,null,null,null,null,null,null,null,null,null,null,null,null,null,null,"          Matl. Prot.                (3S)",null,null,21,null,null,21,null,null,17,null,null,21,null,null,21,null,null,13]
["Vehicle Schedule @ MPW",null,null,null,null,null,null,null,null,null,null,null,"M / E) MKZ",null,null,null,null,null,null,null,null,null,null,null,null,null,null,null,null,null,null,null,null,null,null,null,null,null,null,null,null,"Vehicle Schedule @ MPW"]
["Exp / Nav / Superduty - Kentucky","80.75",null,96,19,null,96,19,null,97,19,null,77,19,null,97,19,null,96,19,null,96,19,null,96,19,null,97,19,null,96,19,null,96,19,null,97,19,null,77,19,{"$f":"A17","v":"Exp / Nav / Superduty - Kentucky"},"80.75",null,96,19,null,57,19,null,97,19,null,96,19,19,97,19,null,96,10,null,"HOL",null,null,75,19,null,97,19,null,77,19,null,96,19,null,97,19]
["          Matl. Prot.              (3C)",null,null,null,null,null,null,null,null,null,null,null,null,null,null,null,null,null,null,null,null,"E) Exp/Nav",null,null,"F) SD",null,null,null,null,null,null,null,null,null,null,null,null,null,null,null,null,"          Matl. Prot.              (3C)",null,null,null,"M) S/Duty",null,"E) S/Duty"]
["Vehicle Schedule @ MPW",null,null,null,null,null,"Super Duty",null,null,null,null,null,null,null,null,null,null,null,"Super Duty",null,null,null,null,null,null,null,null,null,null,null,null,null,null,null,null,null,null,null,null,null,null,"Vehicle Schedule @ MPW",null,null,null,null,null,null,null,null,null,null,null,null,null,null,null,null,null,"Exp.",null,null,null,null,null,"Exp.",null,null,"Exp.",null,null,null,null,null,"Exp.",null,null,"Exp."]
["Escape / MKC - Louisville","71.74",null,103,30,null,103,21,null,"31/72",21,null,82,21,null,103,21,null,103,31,null,103,21,null,103,31,null,103,21,null,103,31,null,103,21,null,103,21,null,92,21,"Escape / MKC - Louisville","71.74",null,103,21,null,61,21,null,103,21,null,103,21,null,103,21,null,101,10,null,"HOL",null,null,81,31,null,103,31,null,82,21,null,103,31,null,103,31]
["          Matl. Prot.              (3C)",null,null,null,null,null,null,null,null,"M) E) Esc/MKC",null,null,null,null,null,null,null,null,null,null,null,null,null,null,null,null,null,null,31,null,null,null,null,null,31,null,null,31,null,null,null,"          Matl. Prot.              (3C)",null,null,null,31,null,null,null,null,null,31,null,null,31,null,null,31]
["Vehicle Schedule @ MPW",null,null,"Esc",null,null,null,null,null,null,null,null,null,null,null,null,null,null,"Esc",null,null,null,null,null,"Esc",null,null,"MKC/Esc",null,null,"Esc",null,null,"MKC/Esc",null,null,"MKC/Esc",null,null,null,null,"Vehicle Schedule @ MPW",null,null,"Esc",null,null,null,null,null,"MKC/Esc",null,null,"MKC/Esc",null,null,"MKC/Esc",null,null,null,null,null,null,null,null,null,null,null,"MKC/Esc",null,null,null,null,null,"MKC/Esc"]
["E-Series / Med Duty / Super Duty - Ohio","36.0",null,40,null,null,40,null,null,40,null,null,40,8,null,50,8,null,50,null,null,40,null,null,40,null,null,40,null,null,40,null,null,40,null,null,50,null,null,40,null,"E-Series / Med Duty / Super Duty - Ohio","36.0",null,50,null,null,30,null,null,40,null,null,40,8,null,40,null,null,40,null,null,"HOL",null,null,40,8,null,50,8,null,40,null,null,50,null,null,50,8]
["          Matl. Prot.        1S  (4x10)",null,null,null,null,null,null,null,null,null,null,null,null,null,null,null,null,null,null,null,null,"M) Econ/MT",null,null,"E) Econ/MT",null,null,null,null,null,null,null,null,"F) SD",null,null,null,null,null,null,null,"          Matl. Prot.        1S  (4x10)",null,null,null,null,null,null,"M) S/Duty",null,"E) S/Duty",null,null,50,null,null,50,8]
["Vehicle Schedule @ MPW","A)",null,null,null,null,null,null,null,null,null,null,null,null,null,"E-Series",null,null,"E-Series",null,null,null,null,null,null,null,null,null,null,null,null,null,null,null,null,null,"E-Series",null,null,null,null,"Vehicle Schedule @ MPW",null,null,"E-Series",null,null,null,null,null,null,null,null,"E-Series",null,null,"E-Series",null,null,null,null,null,null,null,null,null,null,null,"E-Series",null,null,null,null,null,"E-Series",null,null,"E-Series"]
["Mustang/Conti - Flat Rock","50.0",null,39,null,null,40,null,null,40,null,null,29,null,null,40,null,null,39,null,null,"DW",null,null,79,null,null,80,null,null,79,null,null,79,null,null,"DW",null,null,79,null,{"$f":"A26","v":"Mustang/Conti - Flat Rock"},"50.0",null,79,null,null,60,null,null,80,null,null,79,null,null,80,null,null,79,null,null,"HOL",null,null,58,null,null,80,null,null,59,null,null,80,null,null,"DW"]
["          Matl. Prot.                (2S)",null,"u","M) Continental",null,null,"E) Continental",null,null,null,null,null,null,null,null,null,null,null,null,null,null,"M) Mustang",null,null,"I)   E) Mustang",null,null,null,null,null,null,null,null,null,null,null,null,null,null,null,null,"          Matl. Prot.                (2S)",null,null,null,null,null,null,null,null,null,null,null,"B) Mustang"]
["Vehicle Schedule @ MPW",null,null,null,null,null,null,null,null,null,null,null,null,null,null,null,null,null,null,null,null,null,null,null,null,null,null,null,null,null,null,null,null,null,null,null,null,null,null,null,null,{"$f":"A28","v":"Vehicle Schedule @ MPW"}]
["Focus / C-Max - Michigan       (4x10)","60.5",null,80,null,null,"D/W",null,null,80,null,null,60,null,null,"D/W",null,null,80,null,null,80,null,null,80,null,null,80,null,null,80,null,null,80,null,null,"D/W",null,null,80,null,{"$f":"A29","v":"Focus / C-Max - Michigan       (4x10)"},"60.5",null,80,null,null,60,null,null,100,null,null,80,null,null,80,null,null,"D/W",null,null,"HOL",null,null,"FAC",null,null,"FAC",null,null,78,16,null,100,16,null,100]
["        Matl. Prot.                   (2S)",null,null,null,null,null,null,null,null,null,null,null,null,null,null,null,null,null,null,null,null,null,null,null,"M) Foc/C-Max",null,null,"E) Foc/C-Max",null,null,null,null,null,null,null,null,null,null,null,null,null,{"$f":"A30","v":"        Matl. Prot.                   (2S)"}]
["Vehicle Schedule @ MPW",null,null,null,null,null,null,null,null,null,null,null,null,null,null,null,null,null,null,null,null,null,null,null,"C-Max",null,null,null,null,null,null,null,null,null,null,null,null,null,null,null,null,{"$f":"A31","v":"Vehicle Schedule @ MPW"}]
["Edge / MKX / Flex /MKT- Oakville","66.0",null,81,null,null,80,null,null,64,null,null,64,null,null,80,null,null,80,null,null,"43 / 37",null,null,80,null,null,64,null,null,80,null,null,80,null,null,80,null,null,80,null,{"$f":"A32","v":"Edge / MKX / Flex /MKT- Oakville"},"66.0",null,80,null,null,80,null,null,80,null,null,80,null,null,80,null,null,80,null,null,"HOL",null,null,64,null,null,81,null,null,81,null,null,81,null,null,81]
["          Matl. Prot.        2S  (5x8)",null,null,null,null,null,null,null,null,null,null,null,null,null,null,null,null,null,null,null,null,"M) E) Edge/MKX"]
["Vehicle Schedule @ MPW",null,null,null,null,null,"Flex",null,null,null,null,null,null,null,null,"Flex",null,null,"Flex",null,null,"Flex",null,null,"Flex",null,null,null,null,null,"Flex",null,null,"Flex",null,null,"Flex",null,null,"Flex",null,{"$f":"A34","v":"Vehicle Schedule @ MPW"},null,null,"Flex",null,null,"Flex",null,null,"Flex",null,null,"Flex",null,null,"Flex",null,null,"Flex",null,null,null,null,null,null,null,null,"Flex",null,null,"Flex",null,null,"Flex",null,null,"Flex"]
["Taurus/Explorer - Chicago","66.3",null,100,30,null,100,20,null,100,20,null,90,30,null,100,30,null,100,20,null,100,30,null,100,20,null,100,29,null,"16 / 84",20,null,100,20,null,100,30,null,87,20,{"$f":"A35","v":"Taurus/Explorer - Chicago"},"66.3",null,100,30,null,60,20,null,100,30,null,100,30,null,100,20,null,99,10,null,"HOL",null,null,78,30,null,100,30,null,80,20,null,100,30,null,100,30]
["       Matl. Prot.                    (3C)",null,null,null,null,null,null,null,null,null,null,null,null,null,null,null,null,null,null,null,null,null,null,null,null,null,null,"D) Exp / Taurus",null,null,"E) Exp / Taurus",null,null,null,null,null,null,null,null,null,null,"       Matl. Prot.                    (3C)"]
["Vehicle Schedule @ MPW",null,null,"Expl.",null,null,"Expl.",null,null,"Expl.",null,null,"Expl.",null,null,"Expl.",null,null,"Expl.",null,null,"Expl.",null,null,"Expl.",null,null,"Expl.",null,null,null,null,null,null,null,null,"Expl.",null,null,null,null,"Vehicle Schedule @ MPW",null,null,"Expl.",null,null,null,null,null,"Expl.",null,null,"Expl.",null,null,"Expl.",null,null,null,null,null,null,null,null,null,null,null,"Expl.",null,null,null,null,null,"Expl.",null,null,"Expl."]
["Motorhome - Det. Chassis Plant","10.2",null,50,null,null,50,null,null,48,null,null,39,null,null,40,null,null,40,null,null,40,null,null,39,null,null,40,null,null,40,null,null,40,null,null,39,null,null,40,null,{"$f":"A38","v":"Motorhome - Det. Chassis Plant"},"10.2",null,40,null,null,24,null,null,39,null,null,40,null,null,40,null,null,40,null,null,"HOL",null,null,31,null,null,40,null,null,32,null,null,40,null,null,39]
["          Matl. Prot.        1S  (5x8)",null,null,null,null,null,null,null,null,null,null,null,null,null,null,null,null,null,null,null,null,null,null,null,null,null,null,null,null,null,null,null,null,null,null,null,null,null,null,null,null,"          Matl. Prot.        1S  (5x8)"]
["Vehicle Schedule @ MPW",null,null,null,null,null,null,null,null,null,null,null,null,null,null,null,null,null,null,null,null,null,null,null,null,null,null,null,null,null,null,null,null,null,null,null,null,null,null,null,null,{"$f":"A40","v":"Vehicle Schedule @ MPW"}]
["F150 - Dearborn                 (3C)","65.2",null,100,20,null,100,20,null,100,20,null,90,20,null,100,30,null,100,20,null,100,20,null,100,30,null,100,20,null,100,30,null,100,20,null,100,30,null,80,20,{"$f":"A41","v":"F150 - Dearborn                 (3C)"},"65.2",null,100,30,null,70,20,null,100,30,null,100,30,null,100,20,null,100,20,null,"HOL",null,null,78,20,null,100,20,null,80,20,null,100,20,null,100,20]
["          Matl. Prot.",null,null,102,null,null,101,null,null,102,null,null,null,null,null,102,null,null,101,null,null,101,null,null,101,null,null,102,null,null,101,null,null,101,null,null,101,null,null,91,null,{"$f":"A42","v":"          Matl. Prot."},null,null,101,null,null,null,null,null,101,null,null,null,null,null,null,null,null,null,null,null,null,null,null,null,30,null,null,null,null,null,null,null,null,30]
["Vehicle Schedule @ MPW",null,null,null,null,null,null,null,null,null,null,null,null,null,null,null,null,null,null,null,null,null,null,null,null,null,null,null,null,null,null,null,null,null,null,null,null,null,null,null,null,{"$f":"A43","v":"Vehicle Schedule @ MPW"}]
["F150 - Kansas City             (3C)","59.3",null,100,20,null,100,20,null,100,20,null,80,20,null,100,30,null,100,20,null,100,20,null,100,30,null,100,20,null,100,30,null,100,20,null,100,30,null,79,20,{"$f":"A44","v":"F150 - Kansas City             (3C)"},"59.3",null,100,20,null,60,20,null,100,20,null,100,20,null,100,20,null,100,20,null,"HOL",null,null,78,20,null,100,20,null,80,20,null,100,20,null,100,20]
["          Matl. Prot.       ",null,null,null,"E)",null,null,null,null,null,null,null,null,null,null,null,null,null,null,null,null,null,null,null,101,null,null,102,null,null,101,null,null,101,null,null,101,null,null,null,null,"          Matl. Prot.",null,null,101,null,null,null,null,null,101,null,null,101,null,null,102,null,null,null,null,null,null,null,null,null,30,null,null,30,null,null,null,null,null,30]
["Vehicle Schedule @ MPW"]
["Transit - Kansas City (2S)","38.0",null,96,null,null,96,null,null," 79 / 1",null,null,59,null,null,80,null,null,80,null,null,"DW",null,null,79,null,null,80,null,null,80,null,null,80,null,null,80,null,null,79,null,{"$f":"A47","v":"Transit - Kansas City (2S)"},"38.0",null,80,null,null,60,null,null,80,null,null,80,null,null,80,null,null,80,null,null,"HOL",null,null,58,null,null,80,null,null,60,null,null,80,null,null,80]
["          Matl. Prot.    (5x8) (4x10 starts 8/28)         ",null,null,null,null,null,null,null,null,"M)","E)",null,null,null,null,null,null,null,null,null,null,null,null,null,null,null,null,null,null,null,null,null,null,null,null,null,null,null,null,null,null,"          Matl. Prot    (4x10)",null,null,null,null,null,null,null,null,null,null,null,null,null,null,null,null,null,null,null,null,null,null,null,null,null,null,{"$f":"80+16","v":96},null,null,null,null,null,96]
["Vehicle Schedule @ MPW",null,null,null,null,null,null,null,null,null,null,null,null,null,null,null,null,null,null,null,null,null,null,null,null,null,null,null,null,null,null,null,null,null,null,null,null,null,null,null,null,"Vehicle Schedule @ MPW"]
[null,"Allocation Week",null,30,null,null,31,null,null,32,null,null,33,null,null,34,null,null,35,null,null,{"$f":"S50+1","v":36},null,null,{"$f":"V50+1","v":37},null,null,{"$f":"Y50+1","v":38},null,null,{"$f":"AB50+1","v":39},null,null,{"$f":"AE50+1","v":40},null,null,{"$f":"AH50+1","v":41},null,null,{"$f":"AK50+1","v":42},null,null,"Allocation Week",null,{"$f":"AN50+1","v":43},null,null,{"$f":"AS50+1","v":44},null,null,{"$f":"AV50+1","v":45},null,null,{"$f":"AY50+1","v":46},null,null,{"$f":"BB50+1","v":47},null,null,{"$f":"BE50+1","v":48},null,null,49,null,null,{"$f":"BK50+1","v":50},null,null,{"$f":"BN50+1","v":51},null,null,{"$f":"BQ50+1","v":52},null,null,1,null,null,{"$f":"BW50+1","v":2}]
[]
[]
[]
[]
[]
[]
[]
[]
[]
[]
[]
[]
[]
[]
[]
[null,null,null,null,null,null,null,null,null,null,null,null,null,null,null,null,null,null,null,null,null,null,null,null,null,null,null,null,null,null,null,null,null,null,null,null,null,null,null,null,null,null,null,null,null,null,null,null,null,null,null,null,null,null,null,null,null,null,null,null,null,null,null,null,null,null,null,null,null,null,null,null,null,null,null,null,null,null,null,null,null,null,null,null,null,"   LEGEND   "]
[]
[null,null,null,null,null,null,null,null,null,null,null,null,null,null,null,null,null,null,null,null,null,null,null,null,null,null,null,null,null,null,null,null,null,null,null,null,null,null,null,null,null,null,null,null,null,null,null,null,null,null,null,null,null,null,null,null,null,null,null,null,null,null,null,null,null,null,null,null,null,null,null,null,null,null,null,null,null,null,null,null,null,null,null,null,null,null,null," = Changes",null,null,null," = Balance out"]
[null,null,null,null,null,null,null,null,null,null,null,null,null,null,null,null,null,null,null,null,null,null,null,null,null,null,null,null,null,null,null,null,null,null,null,null,null,null,null,null,null,null,null,null,null,null,null,null,null,null,null,null,null,null,null,null,null,null,null,null,null,null,null,null,null,null,null,null,null,null,null,null,null,null,null,null,null,null,null,null,null,null,null,null,null,null,"FAC "," = Facilities down time",null,null,"HOL"," = Holiday"]
[null,null,null,null,null,null,null,null,null,null,null,null,null,null,null,null,null,null,null,null,null,null,null,null,null,null,null,null,null,null,null,null,null,null,null,null,null,null,null,null,null,null,null,null,null,null,null,null,null,null,null,null,null,null,null,null,null,null,null,null,null,null,null,null,null,null,null,null,null,null,null,null,null,null,null,null,null,null,null,null,null,null,null,null,null,null,"D/W"," = Down week",null,null,null," = Launch"]
[null,null,null,null,null,null,null,null,null,null,null,null,null,null,null,null,null,null,null,null,null,null,null,null,null,null,null,null,null,null,null,null,null,null,null,null,null,null,null,null,null,null,null,null,null,null,null,null,null,null,null,null,null,null,null,null,null,null,null,null,null,null,null,null,null,null,null,null,null,null,null,null,null,null,null,null,null,null,null,null,null,null,null,null,null,null,null," = Acceleration",null,null,"VAC"," = Vacation"]
[null,null,null,null,null,null,null,null,null,null,null,null,null,null,null,null,null,null,null,null,null,null,null,null,null,null,null,null,null,null,null,null,null,null,null,null,null,null,null,null,null,null,null,null,null,null,null,null,null,null,null,null,null,null,null,null,null,null,null,null,null,null,null,null,null,null,null,null,null,null,null,null,null,null,null,null,null,null,null,null,null,null,null,null,null,null,null," = Unique operating pattern"]
[null,null,null,null,null,null,null,null,null,null,null,null,null,null,null,"FOOT NOTES:"]
[]
[null,null,null,null,null,null,null,null,null,null,null,null,null,null,null,"A)  JPH increase",null,null,null,null,null,"F) ","Job #3 Launch",null,null,null,null,null,null,"K)  5x8 operarting pattern launch"]
[null,null,null,null,null,null,null,null,null,null,null,null,null,null,null,"B) Job #2 Launch",null,null,null,null,null,"G)","2018 MY Job#1 B/O",null,null,null,null,null,null,"L) JPH Decrease"]
[null,null,null,null,null,null,null,null,null,null,null,null,null,null,null,"C)  1-Shift Launch",null,null,null,null,null,"H)","2017 MY Launch",null,null,null,null,null,null,"M) 2017 MY B/O",null,null,null,null,null,null,null,null,null,null,null,null,null,null,null,null,null,null,null,null,null,null,null,null,null,null,null,null,null,null,null,null,null,null,null,null,null,null,null,null,null,null,null,null,null,null,null,null,null,null,null,null,null,null,"    HOLIDAYS   "]
[null,null,null,null,null,null,null,null,null,null,null,null,null,null,null,"D) 2017MY Job#1 B/O",null,null,null,null,null,"I)","2-shift Launch",null,null,null,null,null,null,"N) 4x10 operating pattern launch",null,null,null,null,null,null,null,null,null,null,null,null,null,null,null,null,null,null,null,null,null,null,null,null,null,null,null,null,null,null,null,null,null,null,null,null,null,null,null,null,null,null,null,null,null,null,null,null,null,null,null,null,null,null,"   U = U.S."]
[null,null,null,null,null,null,null,null,null,null,null,null,null,null,null,"E)  2018 MY Launch",null,null,null,null,null,"J)","3-crew Launch",null,null,null,null,null,null,"O) Facility Changeover Acceleration Curve",null,null,null,null,null,null,null,null,null,null,null,null,null,null,null,null,null,null,null,null,null,null,null,null,null,null,null,null,null,null,null,null,null,null,null,null,null,null,null,null,null,null,null,null,null,null,null,null,null,null,null,null,null,null,"   C = Canada",null,"H = Hermosillo "]
[null,null,null,null,null,null,null,null,null,null,null,null,null,null,null,null,null,null,null,null,null,null,null,null,null,null,null,null,null,null,null,null,null,null,null,null,null,null,null,null,null,null,null,null,null,null,null,null,null,null,null,null,null,null,null,null,null,null,null,null,null,null,null,null,null,null,null,null,null,null,null,null,null,null,null,null,null,null,null,null,null,null,null,null,"   M = Mexico (all)",null,"Q = Cuautitlan "]
[]
[null,null,null,null,null,null,null,null,null,null,null,null,null,null,null,"Balance Out Volumes Locked In for SHADED Production Weeks"]
[]
[null,null,null,null,null,null,null,null,null,null,null,null,null,null,null,"Plant Operating Patterns:",null,null,null,null,null,null,null,null,null,null,null,null,null,null,"Vehicle Schedule @ MPW:  identifies weekly op plan schedules at the 1-all VO-supply MPW capacity for the specified vehicle line.  When condition is present, the vehicle line name will apear in the target production week.  \n\n    "]
[null,null,null,null,null,null,null,null,null,null,null,null,null,null,null,"4x10 - plant works four days a week, ten hours a day."]
[null,null,null,null,null,null,null,null,null,null,null,null,null,null,null,"5x8 - plant works five days a week, eight hours a day.",null,null,null,null,null,null,null,null,null,null,null,null,null,null,null,null,null,null,null,null,null,null,null,null,null,null,null,null,null,null,null,null,null,null,null,null,null,null,null,null,null,null,null,null,null,null,null,null,null,null,null,null,null,null,null,null,null,null,null,null,null,null,null,null,null,null,null,null,"Material Protection - Veh. (000)"]
[null,null,null,null,null,null,null,null,null,null,null,null,null,null,null,"3C - plant operates with three crews.",null,null,null,null,null,null,null,null,null,null,null,null,null,null,null,null,null,null,null,null,null,null,null,null,null,null,null,null,null,null,null,null,null,null,null,null,null,null,null,null,null,null,null,null,null,null,null,null,null,null,null,null,null,null,null,null,null,null,null,null,null,null,null,null,null,null,null,null,"(EWA Months)"]
[null,null,null,null,null,null,null,null,null,null,null,null,null,null,null,"3S - plant operates with three shifts.",null,null,null,null,null,null,null,null,null,null,null,null,null,null,null,null,null,null,null,null,null,null,null,null,null,null,null,null,null,null,null,null,null,null,null,null,null,null,null,null,null,null,null,null,null,null,null,null,null,null,null,null,null,null,null,null,null,null,null,null,null,null,null,null,null,null,null,null,"Car",null,"August","September","October","November","December","January","Tot"]
[null,null,null,null,null,null,null,null,null,null,null,null,null,null,null,"2S - plant operates with two shifts.",null,null,null,null,null,null,null,null,null,null,null,null,null,null,"Shaded cells indicate weekly op plan schedules that exceed the 1-all VO-supply MPW capacity. ",null,null,null,null,null,null,null,null,null,null,null,null,null,null,null,null,null,null,null,null,null,null,null,null,null,null,null,null,null,null,null,null,null,null,null,null,null,null,null,null,null,null,null,null,null,null,null,null,null,null,null,null,null,"Fiesta",null,0,0,0,0,0,0,{"$f":"SUM(CI89:CN89)","v":0}]
[null,null,null,null,null,null,null,null,null,null,null,null,null,null,null,"1S - plant operates with one shift.",null,null,null,null,null,null,null,null,null,null,null,null,null,null,null,null,null,null,null,null,null,null,null,null,null,null,null,null,null,null,null,null,null,null,null,null,null,null,null,null,null,null,null,null,null,null,null,null,null,null,null,null,null,null,null,null,null,null,null,null,null,null,null,null,null,null,null,null,"Fusion",null,0,0,0,0,0,0,0]
[null,null,null,null,null,null,null,null,null,null,null,null,null,null,null,null,null,null,null,null,null,null,null,null,null,null,null,null,null,null,null,null,null,null,null,null,null,null,null,null,null,null,null,null,null,null,null,null,null,null,null,null,null,null,null,null,null,null,null,null,null,null,null,null,null,null,null,null,null,null,null,null,null,null,null,null,null,null,null,null,null,null,null,null,"MKZ",null,0,0,0,1,0.6,0,1.6]
[null,null,null,null,null,null,null,null,null,null,null,null,null,null,null,null,null,null,null,null,null,null,null,null,null,null,null,null,null,null,null,null,null,null,null,null,null,null,null,null,null,null,null,null,null,null,null,null,null,null,null,null,null,null,null,null,null,null,null,null,null,null,null,null,null,null,null,null,null,null,null,null,null,null,null,null,null,null,null,null,null,null,null,null,"Taurus/Exp.",null,0,0,0,0,0,0,0]
[null,null,null,null,null,null,null,null,null,null,null,null,null,null,null,null,null,null,null,null,null,null,null,null,null,null,null,null,null,null,null,null,null,null,null,null,null,null,null,null,null,null,null,null,null,null,null,null,null,null,null,null,null,null,null,null,null,null,null,null,null,null,null,null,null,null,null,null,null,null,null,null,null,null,null,null,null,null,null,null,null,null,null,null,"Focus/C-Max",null,0,0,0,0,0,0,0]
[null,null,null,null,null,null,null,null,null,null,null,null,null,null,null,null,null,null,null,null,null,null,null,null,null,null,null,null,null,null,null,null,null,null,null,null,null,null,null,null,null,null,null,null,null,null,null,null,null,null,null,null,null,null,null,null,null,null,null,null,null,null,null,null,null,null,null,null,null,null,null,null,null,null,null,null,null,null,null,null,null,null,null,null,"Mustang/Conti",null,0,0,0,0,0,0,0]
[null,null,null,null,null,null,null,null,null,null,null,null,null,null,null,null,null,null,null,null,null,null,null,null,null,null,null,null,null,null,null,null,null,null,null,null,null,null,null,null,null,null,null,null,null,null,null,null,null,null,null,null,null,null,null,null,null,null,null,null,null,null,null,null,null,null,null,null,null,null,null,null,null,null,null,null,null,null,null,null,null,null,null,null,"Total Car",null,{"$f":"SUM(CI92:CI94)","v":0},0,0,0,0,{"$f":"SUM(CN92:CN94)","v":0},0]
[null,null,null,null,null,null,null,null,null,null,null,null,null,null,null,null,null,null,null,null,null,null,null,null,null,null,null,null,null,null,null,null,null,null,null,null,null,null,null,null,null,null,null,null,null,null,null,null,null,null,null,null,null,null,null,null,null,null,null,null,null,null,null,null,null,null,null,null,null,null,null,null,null,null,null,null,null,null,null,null,null,null,null,null,"Truck/SUV",null,{"$f":"CI88","v":"August"},"September","October","November","December","January",{"$f":"CO88","v":"Tot"}]
[null,null,null,null,null,null,null,null,null,null,null,null,null,null,null,null,null,null,null,null,null,null,null,null,null,null,null,null,null,null,null,null,null,null,null,null,null,null,null,null,null,null,null,null,null,null,null,null,null,null,null,null,null,null,null,null,null,null,null,null,null,null,null,null,null,null,null,null,null,null,null,null,null,null,null,null,null,null,null,null,null,null,null,null,"Transit",null,0,0,0,0,0,1.2,{"$f":"SUM(CI97:CN97)","v":1.2}]
[null,null,null,null,null,null,null,null,null,null,null,null,null,null,null,null,null,null,null,null,null,null,null,null,null,null,null,null,null,null,null,null,null,null,null,null,null,null,null,null,null,null,null,null,null,null,null,null,null,null,null,null,null,null,null,null,null,null,null,null,null,null,null,null," ",null,null,null,null,null,null,null,null,null,null,null,null,null,null,null,null,null,null,null,"F150",null,0,0.4,1,0.6,0.2,3,5.2]
[null,null,null,null,null,null,null,null,null,null,null,null,null,null,null,null,null,null,null,null,null,null,null,null,null,null,null,null,null,null,null,null,null,null,null,null,null,null,null,null,null,null,null,null,null,null,null,null,null,null,null,null,null,null,null,null,null,null,null,null,null,null,null,null,null,null,null,null,null,null,null,null,null,null,null,null,null,null,null,null,null,null,null,null,"Exp/Nav",null,0,0,0,0,0,1.88,1.88]
[null,null,null,null,null,null,null,null,null,null,null,null,null,null,null,null,null,null,null,null,null,null,null,null,null,null,null,null,null,null,null,null,null,null,null,null,null,null,null,null,null,null,null,null,null,null,null,null,null,null,null,null,null,null,null,null,null,null,null,null,null,null,null,null,null,null,null,null,null,null,null,null,null,null,null,null,null,null,null,null,null,null,null,null,"Superduty",null,0,0,0,0,0,0,0]
[null,null,null,null,null,null,null,null,null,null,null,null,null,null,null,null,null,null,null,null,null,null,null,null,null,null,null,null,null,null,null,null,null,null,null,null,null,null,null,null,null,null,null,null,null,null,null,null,null,null,null,null,null,null,null,null,null,null,null,null,null,null,null,null,null,null,null,null,null,null,null,null,null,null,null,null,null,null,null,null,null,null,null,null,"OHAP - E-Series/MD/SD",null,0,0,0,0,1.296,0,1.296]
[null,null,null,null,null,null,null,null,null,null,null,null,null,null,null,null,null,null,null,null,null," ",null,null,null,null,null,null,null,null,null,null,null,null,null,null,null,null,null,null,null,null,null,null,null,null,null,null,null,null,null,null,null,null,null,null,null,null,null,null,null,null,null,null,null,null,null,null,null,null,null,null,null,null,null,null,null,null,null,null,null,null,null,null,"Louisville - Escape / MKC",null,0,0,1.4,1.4,2.2000000000000002,0,5]
[null,null,null,null,null,null,null,null,null,null,null,null,null,null,null,null,null,null,null,null,null,null,null,null,null,null,null,null,null,null,null,null,null,null,null,null,null,null,null,null,null,null,null,null,null,null,null,null,null,null,null,null,null,null,null,null,null,null,null,null,null,null,null,null,null,null,null,null,null,null,null,null,null,null,null,null,null,null,null,null,null,null,null,null,"Motorhome",null,0,0,0,0,0,0,0]
[null,null,null,null,null,null,null,null,null,null,null,null,null,null,null,null,null,null,null,null,null,null,null,null,null,null,null,null,null,null,null,null,null,null,null,null,null,null,null,null,null,null,null,null,null,null,null,null,null,null,null,null,null,null,null,null,null,null,null,null,null,null,null,null,null,null,null,null,null,null,null,null,null,null,null,null,null,null,null,null,null,null,null,null,"Edge/MKX/Flex/MKT",null,0,0,0,0,0,0,0]
[null,null,null,null,null,null,null,null,null,null,null,null,null,null,null,null,null,null,null,null,null,null,null,null,null,null,null,null,null,null,null,null,null,null,null,null,null,null,null,null,null,null,null,null,null,null,null,null,null,null,null,null,null,null,null,null,null,null,null,null,null,null,null,null,null,null,null,null,null,null,null,null,null,null,null,null,null,null,null,null,null,null,null,null,"Total Truck/SUV",null,{"$f":"SUM(CI97:CI104)","v":0},0.4,2.4,{"$f":"SUM(CL97:CL104)","v":2},3.6960000000000002,{"$f":"SUM(CN97:CN104)","v":6.08},14.576000000000001]
[]
[]
[]
[null,null,null,null,null,null,null,null,null,null,null,null,null,null,null,null,null,null,null,null,null,null,null,null,null,null,null,null,null,null,null,null,null,null,null,null,null,null,null,null,null,null,null,null,null,null,null,null,null,null,null,null,null,null,null,null,null,null,null,null,null,null,null,null,null,null,null,null,null,null,null,null,null,null,null,null,null,null,null,null,null,null,null,"  Plant Mixes    ","  ","August","September","October","November","December","January"]
[null,null,null,null,null,null,null,null,null,null,null,null,null,null,null,null,null,null,null,null,null,null,null,null,null,null,null,null,null,null,null,null,null,null,null,null,null,null,null,null,null,null,null,null,null,null,null,null,null,null,null,null,null,null,null,null,null,null,null,null,null,null,null,null,null,null,null,null,null,null,null,null,null,null,null,null,null,null,null,null,null,null,null,"Hermosillo","Fusion",0.81,0.81,0.81,0.81,0.81,0.85]
[null,null,null,null,null,null,null,null,null,null,null,null,null,null,null,null,null,null,null,null,null,null,null,null,null,null,null,null,null,null,null,null,null,null,null,null,null,null,null,null,null,null,null,null,null,null,null,null,null,null,null,null,null,null,null,null,null,null,null,null,null,null,null,null,null,null,null,null,null,null,null,null,null,null,null,null,null,null,null,null,null,null,null,null,"MKZ",{"$f":"100%-CH110","v":0.18999999999999995},0.18999999999999995,0.18999999999999995,{"$f":"100%-CK110","v":0.18999999999999995},{"$f":"100%-CL110","v":0.18999999999999995},0.15000000000000002]
[null,null,null,null,null,null,null,null,null,null,null,null,null,null,null,null,null,null,null,null,null,null,null,null,null,null,null,null,null,null,null,null,null,null,null,null,null,null,null,null,null,null,null,null,null,null,null,null,null,null,null,null,null,null,null,null,null,null,null,null,null,null,null,null,null,null,null,null,null,null,null,null,null,null,null,null,null,null,null,null,null,null,null,"Kentucky Truck","Expedition",0,0.01,0.02,0.14000000000000001,0.16,0.11]
[null,null,null,null,null,null,null,null,null,null,null,null,null,null,null,null,null,null,null,null,null,null,null,null,null,null,null,null,null,null,null,null,null,null,null,null,null,null,null,null,null,null,null,null,null,null,null,null,null,null,null,null,null,null,null,null,null,null,null,null,null,null,null,null,null,null,null,null,null,null,null,null,null,null,null,null,null,null,null,null,null,null,null,null,"Navigator",0,0.01,0.06,0.04,0.05,0.05]
[null,null,null,null,null,null,null,null,null,null,null,null,null,null,null,null,null,null,null,null,null,null,null,null,null,null,null,null,null,null,null,null,null,null,null,null,null,null,null,null,null,null,null,null,null,null,null,null,null,null,null,null,null,null,null,null,null,null,null,null,null,null,null,null,null,null,null,null,null,null,null,null,null,null,null,null,null,null,null,null,null,null,null,null,"Superduty",{"$f":"1-CH112-CH113","v":1},0.98,0.91999999999999993,0.82,{"$f":"1-CL112-CL113","v":0.78999999999999992},{"$f":"1-CM113-CM112","v":0.84}]
[]
["THIS DOCUMENT FOR REFERENCE ONLY.  ALL PRODUCTION PLANNING SHOULD BE BASED UPON MATERIAL RELEASE REQUIREMENTS.",null,null,null,null,null,null,null,null,null,null,null,null,null,null,null,null,null,null,null,null,null,null,null,null,null,null,null,null,null,null,null,null,null,null,null,null,null,null,null,null,null,null,null,null,null,null,null,null,null,null,null,null,null,null,null,null,null,null,null,null,null,null,null,null,null,null,null,null,null,null,null,null,null,null,null,null,null,null,null,null,null,null,"Louisville","Escape",0.85,0.88,0.86,0.86,0.86,0.86]
[null,null,null,null,null,null,null,null,null,null,null,null,null,null,null,null,null,null,null,null,null,null,null,null,null,null,null,null,null,null,null,null,null,null,null,null,null,null,null,null,null,null,null,null,null,null,null,null,null,null,null,null,null,null,null,null,null,null,null,null,null,null,null,null,null,null,null,null,null,null,null,null,null,null,null,null,null,null,null,null,null,null,null,null,"MKC",{"$f":"1-CH116","v":0.15000000000000002},0.12,0.14000000000000001,{"$f":"1-CK116","v":0.14000000000000001},0.14000000000000001,0.14000000000000001]
[null,null,null,null,null,null,null,null,null,null,null,null,null,null,null,null,null,null,null,null,null,null,null,null,null,null,null,null,null,null,null,null,null,null,null,null,null,null,null,null,null,null,null,null,null,null,null,null,null,null,null,null,null,null,null,null,null,null,null,null,null,null,null,null,null,null,null,null,null,null,null,null,null,null,null,null,null,null,null,null,null,null,null,"Ohio","Econoline",{"$f":"1-CH119-CH120","v":0.78},{"$f":"1-CI119-CI120","v":0.83000000000000007},0.77,0.79,{"$f":"1-CL119-CL120","v":0.74},{"$f":"1-CM119-CM120","v":0.69000000000000006}]
[null,null,null,null,null,null,null,null,null,null,null,null,null,null,null,null,null,null,null,null,null,null,null,null,null,null,null,null,null,null,null,null,null,null,null,null,null,null,null,null,null,null,null,null,null,null,null,null,null,null,null,null,null,null,null,null,null,null,null,null,null,null,null,null,null,null,null,null,null,null,null,null,null,null,null,null,null,null,null,null,null,null,null,null,"Med. Duty",0.11,0.1,0.09,0.11,0.19,0.23]
[null,null,null,null,null,null,null,null,null,null,null,null,null,null,null,null,null,null,null,null,null,null,null,null,null,null,null,null,null,null,null,null,null,null,null,null,null,null,null,null,null,null,null,null,null,null,null,null,null,null,null,null,null,null,null,null,null,null,null,null,null,null,null,null,null,null,null,null,null,null,null,null,null,null,null,null,null,null,null,null,null,null,null,null,"Super Duty",0.11,7.0000000000000007E-2,0.14000000000000001,0.1,7.0000000000000007E-2,0.08]
[null,null,null,null,null,null,null,null,null,null,null,null,null,null,null,null,null,null,null,null,null,null,null,null,null,null,null,null,null,null,null,null,null,null,null,null,null,null,null,null,null,null,null,null,null,null,null,null,null,null,null,null,null,null,null,null,null,null,null,null,null,null,null,null,null,null,null,null,null,null,null,null,null,null,null,null,null,null,null,null,null,null,null,"Flat Rock","Mustang",0.74,0.8,0.8,0.75,0.8,0.8]
[null,null,null,null,null,null,null,null,null,null,null,null,null,null,null,null,null,null,null,null,null,null,null,null,null,null,null,null,null,null,null,null,null,null,null,null,null,null,null,null,null,null,null,null,null,null,null,null,null,null,null,null,null,null,null,null,null,null,null,null,null,null,null,null,null,null,null,null,null,null,null,null,null,null,null,null,null,null,null,null,null,null,null,null,"Continental",{"$f":"1-CH121","v":0.26},0.19999999999999996,{"$f":"1-CJ121","v":0.19999999999999996},{"$f":"1-CK121","v":0.25},0.2,0.2]
[]
[null,null,null,null,null,null,null,null,null,null,null,null,null,null,null,null,null,null,null,null,null,null,null,null,null,null,null,null,null,null,null,null,null,null,null,null,null,null,null,null,null,null,null,null,null,null,null,null,null,null,null,null,null,null,null,null,null,null,null,null,null,null,null,null,null,null,null,null,null,null,null,null,null,null,null,null,null,null,null,null,null,null,null,"Michigan","Focus",0.91,0.86,0.89,0.95,0.93400000000000005,0.95]
[null,null,null,null,null,null,null,null,null,null,null,null,null,null,null,null,null,null,null,null,null,null,null,null,null,null,null,null,null,null,null,null,null,null,null,null,null,null,null,null,null,null,null,null,null,null,null,null,null,null,null,null,null,null,null,null,null,null,null,null,null,null,null,null,null,null,null,null,null,null,null,null,null,null,null,null,null,null,null,null,null,null,null,null,"C-Max",{"$f":"1-CH124","v":8.9999999999999969E-2},0.14000000000000001,{"$f":"1-CJ124","v":0.10999999999999999},{"$f":"1-CK124","v":5.0000000000000044E-2},6.5999999999999948E-2,5.0000000000000044E-2]
[null,null,null,null,null,null,null,null,null,null,null,null,null,null,null,null,null,null,null,null,null,null,null,null,null,null,null,null,null,null,null,null,null,null,null,null,null,null,null,null,null,null,null,null,null,null,null,null,null,null,null,null,null,null,null,null,null,null,null,null,null,null,null,null,null,null,null,null,null,null,null,null,null,null,null,null,null,null,null,null,null,null,null,"Oakville","Edge",0.73,0.71,0.63,0.61,0.6,0.77]
[null,null,null,null,null,null,null,null,null,null,null,null,null,null,null,null,null,null,null,null,null,null,null,null,null,null,null,null,null,null,null,null,null,null,null,null,null,null,null,null,null,null,null,null,null,null,null,null,null,null,null,null,null,null,null,null,null,null,null,null,null,null,null,null,null,null,null,null,null,null,null,null,null,null,null,null,null,null,null,null,null,null,null,null,"MKX",0.15,0.17,0.26,0.27,0.27,0.13]
[null,null,null,null,null,null,null,null,null,null,null,null,null,null,null,null,null,null,null,null,null,null,null,null,null,null,null,null,null,null,null,null,null,null,null,null,null,null,null,null,null,null,null,null,null,null,null,null,null,null,null,null,null,null,null,null,null,null,null,null,null,null,null,null,null,null,null,null,null,null,null,null,null,null,null,null,null,null,null,null,null,null,null,null,"Flex",0.11,0.11,0.11,0.11,0.11,0.09]
[null,null,null,null,null,null,null,null,null,null,null,null,null,null,null,null,null,null,null,null,null,null,null,null,null,null,null,null,null,null,null,null,null,null,null,null,null,null,null,null,null,null,null,null,null,null,null,null,null,null,null,null,null,null,null,null,null,null,null,null,null,null,null,null,null,null,null,null,null,null,null,null,null,null,null,null,null,null,null,null,null,null,null,null,"MKT",0.01,0.01,0.01,0.01,0.02,0.01]
[null,null,null,null,null,null,null,null,null,null,null,null,null,null,null,null,null,null,null,null,null,null,null,null,null,null,null,null,null,null,null,null,null,null,null,null,null,null,null,null,null,null,null,null,null,null,null,null,null,null,null,null,null,null,null,null,null,null,null,null,null,null,null,null,null,null,null,null,null,null,null,null,null,null,null,null,null,null,null,null,null,null,null,"Chicago","Taurus",{"$f":"1-CH131","v":0.12},0.12,0.13,0.14000000000000001,0.15000000000000002,{"$f":"1-CM131","v":0.17000000000000004}]
[null,null,null,null,null,null,null,null,null,null,null,null,null,null,null,null,null,null,null,null,null,null,null,null,null,null,null,null,null,null,null,null,null,null,null,null,null,null,null,null,null,null,null,null,null,null,null,null,null,null,null,null,null,null,null,null,null,null,null,null,null,null,null,null,null,null,null,null,null,null,null,null,null,null,null,null,null,null,null,null,null,null,null,null,"Explorer",0.88,0.88,0.87,0.86,0.85,0.83,null,null,null,null,null,null,null,null,null,null,null,null,"3-Crew OT Shift Schedule"]
[null,null,null,null,null,null,null,null,null,null,null,null,null,null,null,null,null,null,null,null,null,null,null,null,null,null,null,null,null,null,null,null,null,null,null,null,null,null,null,null,null,null,null,null,null,null,null,null,null,null,null,null,null,null,null,null,null,null,null,null,null,null,null,null,null,null,null,null,null,null,null,null,null,null,null,null,null,null,null,null,null,null,null,"Dearborn Truck","Super Crew",0.79,0.81,0.78,0.81,0.81,0.84,null,null,null,null,null,null,null,null,null,null,null,null,"3-Crew Plants","2015-01-05",null,"2015-01-12",null,"2015-01-19",null,"2015-01-26",null,"2015-02-02",null,"2015-02-09",null,"2015-02-16",null,"2015-02-23",null,"2015-03-02",null,"2015-03-09",null,"2015-03-16",null,"2015-03-23",null,"2015-03-30",null,"2015-04-06",null,"2015-04-13",null,"2015-04-20",null,"2015-04-27",null,"2015-05-04",null,"2015-05-11",null,"2015-05-18",null,"2015-05-25",null,"2015-06-01",null,"2015-06-08",null,"2015-06-15",null,"2015-06-22",null,"2015-06-29",null,"2015-07-06",null,"2015-07-13",null,"2015-07-20",null,"2015-07-27",null,"2015-08-03",null,"2015-08-10",null,"2015-08-17",null,"2015-08-24",null,"2015-08-31",null,"2015-09-07",null,"2015-09-14",null,"2015-09-21",null,"2015-09-28",null,"2015-10-05",null,"2015-10-12",null,"2015-10-19",null,"2015-10-26",null,"2015-11-02",null,"2015-11-09",null,"2015-11-16",null,"2015-11-23",null,"2015-11-30",null,"2015-12-07",null,"2015-12-14",null,"2015-12-21",null,"2015-12-28",null,"2016-01-04",null,"2016-01-11",null,"2016-01-18",null,"2016-01-25",null,"2016-02-01",null,"2016-02-08",null,"2016-02-15",null,"2016-02-22",null,"2016-02-29",null,"2016-03-07",null,"2016-03-14",null,"2016-03-21",null,"2016-03-28",null,"2016-04-04",null,"2016-04-11",null,"2016-04-18",null,"2016-04-25",null,"2016-05-02",null,"2016-05-09",null,"2016-05-16",null,"2016-05-23",null,"2016-05-30",null,"2016-06-06",null,"2016-06-13",null,"2016-06-20",null,"2016-06-27",null,"2016-07-04",null,"2016-07-11",null,"2016-07-25",null,"2016-08-01",null,"2016-08-08",null,"2016-08-15",null,"2016-08-22",null,"2016-08-29",null,"2016-09-05",null,"2016-09-12",null,"2016-09-19",null,"2016-09-26",null,"2016-10-03",null,"2016-10-10",null,"2016-10-24",null,"2016-10-31",null,"2016-11-07",null,"2016-11-14",null,"2016-11-21",null,"2016-11-28",null,"2016-12-05",null,"2016-12-12",null,{"$f":"KQ132+7","v":"2016-12-19"},null,{"$f":"KS132+7","v":"2016-12-26"},null,"2017-01-02",null,{"$f":"KW132+7","v":"2017-01-09"},null,{"$f":"KY132+7","v":"2017-01-16"},null,{"$f":"LA132+7","v":"2017-01-23"},null,{"$f":"LC132+7","v":"2017-01-30"},null,{"$f":"LE132+7","v":"2017-02-06"},null,{"$f":"LG132+7","v":"2017-02-13"},null,{"$f":"LI132+7","v":"2017-02-20"},null,{"$f":"LK132+7","v":"2017-02-27"},null,{"$f":"LM132+7","v":"2017-03-06"},null,{"$f":"LO132+7","v":"2017-03-13"},null,{"$f":"LQ132+7","v":"2017-03-20"},null,{"$f":"LS132+7","v":"2017-03-27"},null,{"$f":"LU132+7","v":"2017-04-03"},null,{"$f":"LW132+7","v":"2017-04-10"},null,{"$f":"LY132+7","v":"2017-04-17"},null,{"$f":"MA132+7","v":"2017-04-24"},null,{"$f":"MC132+7","v":"2017-05-01"},null,{"$f":"ME132+7","v":"2017-05-08"},null,{"$f":"MG132+7","v":"2017-05-15"},null,{"$f":"MI132+7","v":"2017-05-22"},null,{"$f":"MK132+7","v":"2017-05-29"},null,{"$f":"MM132+7","v":"2017-06-05"},null,{"$f":"MO132+7","v":"2017-06-12"},null,{"$f":"MQ132+7","v":"2017-06-19"},null,{"$f":"MS132+7","v":"2017-06-26"},null,{"$f":"MU132+7","v":"2017-07-03"},null,{"$f":"MW132+7","v":"2017-07-10"},null,{"$f":"MY132+7","v":"2017-07-17"},null,{"$f":"NA132+7","v":"2017-07-24"},null,{"$f":"NC132+7","v":"2017-07-31"},null,{"$f":"NE132+7","v":"2017-08-07"},null,{"$f":"NG132+7","v":"2017-08-14"},null,{"$f":"NI132+7","v":"2017-08-21"},null,{"$f":"NK132+7","v":"2017-08-28"},null,{"$f":"NM132+7","v":"2017-09-04"},null,{"$f":"NO132+7","v":"2017-09-11"},null,{"$f":"NQ132+7","v":"2017-09-18"},null,{"$f":"NS132+7","v":"2017-09-25"},null,{"$f":"NU132+7","v":"2017-10-02"},null,{"$f":"NW132+7","v":"2017-10-09"},null,{"$f":"NY132+7","v":"2017-10-16"},null,{"$f":"OA132+7","v":"2017-10-23"},null,{"$f":"OC132+7","v":"2017-10-30"},null,{"$f":"OE132+7","v":"2017-11-06"}]
[null,null,null,null,null,null,null,null,null,null,null,null,null,null,null,null,null,null,null,null,null,null,null,null,null,null,null,null,null,null,null,null,null,null,null,null,null,null,null,null,null,null,null,null,null,null,null,null,null,null,null,null,null,null,null,null,null,null,null,null,null,null,null,null,null,null,null,null,null,null,null,null,null,null,null,null,null,null,null,null,null,null,null,null,"Regular/Super Cab",0.21,0.19,0.22,0.19,0.19,0.16,null,null,null,null,null,null,null,null,null,null,null,null,null,"Sat","Sun","Sat","Sun","Sat","Sun","Sat","Sun","Sat","Sun","Sat","Sun","Sat","Sun","Sat","Sun","Sat","Sun","Sat","Sun","Sat","Sun","Sat","Sun","Sat","Sun","Sat","Sun","Sat","Sun","Sat","Sun","Sat","Sun","Sat","Sun","Sat","Sun","Sat","Sun","Sat","Sun","Sat","Sun","Sat","Sun","Sat","Sun","Sat","Sun","Sat","Sun","Sat","Sun","Sat","Sun","Sat","Sun","Sat","Sun","Sat","Sun","Sat","Sun","Sat","Sun","Sat","Sun","Sat","Sun","Sat","Sun","Sat","Sun","Sat","Sun","Sat","Sun","Sat","Sun","Sat","Sun","Sat","Sun","Sat","Sun","Sat","Sun","Sat","Sun","Sat","Sun","Sat","Sun","Sat","Sun","Sat","Sun","Sat","Sun","Sat","Sun","Sat","Sun","Sat","Sun","Sat","Sun","Sat","Sun","Sat","Sun","Sat","Sun","Sat","Sun","Sat","Sun","Sat","Sun","Sat","Sun","Sat","Sun","Sat","Sun","Sat","Sun","Sat","Sun","Sat","Sun","Sat","Sun","Sat","Sun","Sat","Sun","Sat","Sun","Sat","Sun","Sat","Sun","Sat","Sun","Sat","Sun","Sat","Sun","Sat","Sun","Sat","Sun","Sat","Sun","Sat","Sun","Sat","Sun","Sat","Sun","Sat","Sun","Sat","Sun","Sat","Sun","Sat","Sun","Sat","Sun","Sat","Sun","Sat","Sun","Sat","Sun","Sat","Sun","Sat","Sun","Sat","Sun","Sat","Sun","Sat","Sun","Sat","Sun","Sat","Sun","Sat","Sun","Sat","Sun","Sat","Sun","Sat","Sun","Sat","Sun","Sat","Sun","Sat","Sun","Sat","Sun","Sat","Sun","Sat","Sun","Sat","Sun","Sat","Sun","Sat","Sun","Sat","Sun","Sat","Sun","Sat","Sun","Sat","Sun","Sat","Sun","Sat","Sun","Sat","Sun","Sat","Sun","Sat","Sun","Sat","Sun","Sat","Sun","Sat","Sun","Sat","Sun","Sat","Sun","Sat","Sun","Sat","Sun","Sat","Sun","Sat","Sun","Sat","Sun","Sat","Sun","Sat","Sun","Sat","Sun","Sat","Sun","Sat","Sun","Sat","Sun","Sat","Sun","Sat","Sun","Sat","Sun","Sat","Sun","Sat","Sun","Sat","Sun","Sat","Sun","Sat","Sun","Sat","Sun","Sat","Sun","Sat","Sun","Sat","Sun","Sat","Sun"]
[null,null,null,null,null,null,null,null,null,null,null,null,null,null,null,null,null,null,null,null,null,null,null,null,null,null,null,null,null,null,null,null,null,null,null,null,null,null,null,null,null,null,null,null,null,null,null,null,null,null,null,null,null,null,null,null,null,null,null,null,null,null,null,null,null,null,null,null,null,null,null,null,null,null,null,null,null,null,null,null,null,null,null,"Kansas City","Supercrew",0.7,0.69,0.69,0.7,0.64,0.67,null,null,null,null,null,null,null,null,null,null,null,null,null,"2015-01-10","2015-01-11","2015-01-17","2015-01-18","2015-01-24","2015-01-25","2015-01-31","2015-02-01","2015-02-07","2015-02-08","2015-02-14","2015-02-15","2015-02-21","2015-02-22","2015-02-28","2015-03-01","2015-03-07","2015-03-08","2015-03-14","2015-03-15","2015-03-21","2015-03-22","2015-03-28","2015-03-29","2015-04-04","2015-04-05","2015-04-11","2015-04-12","2015-04-18","2015-04-19","2015-04-25","2015-04-26","2015-05-02","2015-05-03","2015-05-09","2015-05-10","2015-05-16","2015-05-17","2015-05-23","2015-05-24","2015-05-30","2015-05-31","2015-06-06","2015-06-07","2015-06-13","2015-06-14","2015-06-20","2015-06-21","2015-06-27","2015-06-28","2015-07-04","2015-07-05","2015-07-11","2015-07-12","2015-07-18","2015-07-19","2015-07-25","2015-07-26","2015-08-01","2015-08-02","2015-08-08","2015-08-09","2015-08-15","2015-08-16","2015-08-22","2015-08-23","2015-08-29","2015-08-30","2015-09-05","2015-09-06","2015-09-12","2015-09-13","2015-09-19","2015-09-20","2015-09-26","2015-09-27","2015-10-03","2015-10-04","2015-10-10","2015-10-11","2015-10-17","2015-10-18","2015-10-24","2015-10-25","2015-10-31","2015-11-01","2015-11-07","2015-11-08","2015-11-14","2015-11-15","2015-11-21","2015-11-22","2015-11-28","2015-11-29","2015-12-05","2015-12-06","2015-12-12","2015-12-13","2015-12-19","2015-12-20","2015-12-26","2015-12-27","2016-01-02","2016-01-03","2016-01-09","2016-01-10","2016-01-16","2016-01-17","2016-01-23","2016-01-24","2016-01-30","2016-01-31","2016-02-06","2016-02-07","2016-02-13","2016-02-14","2016-02-20","2016-02-21","2016-02-27","2016-02-28","2016-03-05","2016-03-06","2016-03-12","2016-03-13","2016-03-19","2016-03-20","2016-03-26","2016-03-27","2016-04-02","2016-04-03","2016-04-09","2016-04-10","2016-04-16","2016-04-17","2016-04-23","2016-04-24","2016-04-30","2016-05-01","2016-05-07","2016-05-08","2016-05-14","2016-05-15","2016-05-21","2016-05-22","2016-05-28","2016-05-29","2016-06-04","2016-06-05","2016-06-11","2016-06-12","2016-06-18","2016-06-19","2016-06-25","2016-06-26","2016-07-02","2016-07-03","2016-07-09","2016-07-10","2016-07-16","2016-07-17","2016-07-30","2016-07-31","2016-08-06","2016-08-07","2016-08-13","2016-08-14","2016-08-20","2016-08-21","2016-08-27","2016-08-28","2016-09-03","2016-09-04","2016-09-10","2016-09-11","2016-09-17","2016-09-18","2016-09-24","2016-09-25","2016-10-01","2016-10-02","2016-10-08","2016-10-09","2016-10-15","2016-10-16","2016-10-29","2016-10-30","2016-11-05","2016-11-06","2016-11-12","2016-11-13","2016-11-19","2016-11-20","2016-11-26","2016-11-27","2016-12-03","2016-12-04","2016-12-10","2016-12-11","2016-12-17","2016-12-18","2016-12-24","2016-12-25","2016-12-31","2016-01-01","2017-01-07","2017-01-08",{"$f":"KW134+7","v":"2017-01-14"},{"$f":"KX134+7","v":"2017-01-15"},{"$f":"KY134+7","v":"2017-01-21"},"2017-01-22",{"$f":"LA134+7","v":"2017-01-28"},{"$f":"LB134+7","v":"2017-01-29"},{"$f":"LC134+7","v":"2017-02-04"},{"$f":"LD134+7","v":"2017-02-05"},{"$f":"LE134+7","v":"2017-02-11"},{"$f":"LF134+7","v":"2017-02-12"},{"$f":"LG134+7","v":"2017-02-18"},"2017-02-19","2017-02-25","2017-02-26","2017-03-04","2017-03-05","2017-03-11","2017-03-12","2017-03-18","2017-03-19",{"$f":"LQ134+7","v":"2017-03-25"},{"$f":"LR134+7","v":"2017-03-26"},{"$f":"LS134+7","v":"2017-04-01"},{"$f":"LT134+7","v":"2017-04-02"},{"$f":"LU134+7","v":"2017-04-08"},{"$f":"LV134+7","v":"2017-04-09"},{"$f":"LW134+7","v":"2017-04-15"},{"$f":"LX134+7","v":"2017-04-16"},{"$f":"LY134+7","v":"2017-04-22"},{"$f":"LZ134+7","v":"2017-04-23"},{"$f":"MA134+7","v":"2017-04-29"},{"$f":"MB134+7","v":"2017-04-30"},{"$f":"MC134+7","v":"2017-05-06"},"2017-05-07","2017-05-13","2017-05-14",{"$f":"MG134+7","v":"2017-05-20"},{"$f":"MH134+7","v":"2017-05-21"},{"$f":"MI134+7","v":"2017-05-27"},{"$f":"MJ134+7","v":"2017-05-28"},{"$f":"MK134+7","v":"2017-06-03"},{"$f":"ML134+7","v":"2017-06-04"},{"$f":"MM134+7","v":"2017-06-10"},"2017-06-11","2017-06-17","2017-06-18",{"$f":"MQ134+7","v":"2017-06-24"},"2017-06-25","2017-07-01","2017-07-02",{"$f":"MU134+7","v":"2017-07-08"},{"$f":"MV134+7","v":"2017-07-09"},{"$f":"MW134+7","v":"2017-07-15"},{"$f":"MX134+7","v":"2017-07-16"},{"$f":"MY134+7","v":"2017-07-22"},{"$f":"MZ134+7","v":"2017-07-23"},{"$f":"NA134+7","v":"2017-07-29"},{"$f":"NB134+7","v":"2017-07-30"},{"$f":"NC134+7","v":"2017-08-05"},{"$f":"ND134+7","v":"2017-08-06"},{"$f":"NE134+7","v":"2017-08-12"},{"$f":"NF134+7","v":"2017-08-13"},{"$f":"NG134+7","v":"2017-08-19"},{"$f":"NH134+7","v":"2017-08-20"},{"$f":"NI134+7","v":"2017-08-26"},"2017-08-27",{"$f":"NK134+7","v":"2017-09-02"},{"$f":"NL134+7","v":"2017-09-03"},{"$f":"NM134+7","v":"2017-09-09"},{"$f":"NN134+7","v":"2017-09-10"},{"$f":"NO134+7","v":"2017-09-16"},{"$f":"NP134+7","v":"2017-09-17"},{"$f":"NQ134+7","v":"2017-09-23"},{"$f":"NR134+7","v":"2017-09-24"},{"$f":"NS134+7","v":"2017-09-30"},{"$f":"NT134+7","v":"2017-10-01"},{"$f":"NU134+7","v":"2017-10-07"},{"$f":"NV134+7","v":"2017-10-08"},"2017-10-14","2017-10-15",{"$f":"NY134+7","v":"2017-10-21"},{"$f":"NZ134+7","v":"2017-10-22"},{"$f":"OA134+7","v":"2017-10-28"},{"$f":"OB134+7","v":"2017-10-29"},{"$f":"OC134+7","v":"2017-11-04"},{"$f":"OD134+7","v":"2017-11-05"},{"$f":"OE134+7","v":"2017-11-11"},{"$f":"OF134+7","v":"2017-11-12"}]
[null,null,null,null,null,null,null,null,null,null,null,null,null,null,null,null,null,null,null,null,null,null,null,null,null,null,null,null,null,null,null,null,null,null,null,null,null,null,null,null,null,null,null,null,null,null,null,null,null,null,null,null,null,null,null,null,null,null,null,null,null,null,null,null,null,null,null,null,null,null,null,null,null,null,null,null,null,null,null,null,null,null,null,null,"Regular/Super Cab",0.3,0.31,0.31,0.3,0.36,0.33,null,null,null,null,null,null,null,null,null,null,null,null,"Kentucky",null,null,null,null,"X",null,null,null,null,null,null,null,null,"X",null,"X",null,null,"X",null,null,"X",null,"X",null,null,null,null,null,null,"X",null,null,null,null,null,null,null,null,null,"X",null,null,"X",null,null,null,null,null,null,null,null,null,null,null,null,"X",null,null,null,null,null,null,null,null,"X",null,null,null,null,null,null,"X",null,null,null,null,null,null,"X",null,null,null,null,null,null,null,"X",null,null,null,null,null,null,"X",null,null,null,null,null,null,null,null,null,null,null,null,null,null,null,null,null,"X",null,null,null,null,null,null,null,null,null,null,"X","X",null,null,null,null,null,null,null,null,null,null,null,null,null,null,null,null,null,null,null,null,null,null,null,null,null,null,null,null,"X",null,null,null,null,null,null,null,null,null,null,null,"X","X",null,null,"X",null,null,null,null,null,null,null,null,null,"X",null,null,"X",null,null,"X","X",null,null,"X","X",null,null,"X","X",null,null,"X","X"]
[null,null,null,null,null,null,null,null,null,null,null,null,null,null,null,null,null,null,null,null,null,null,null,null,null,null,null,null,null,null,null,null,null,null,null,null,null,null,null,null,null,null,null,null,null,null,null,null,null,null,null,null,null,null,null,null,null,null,null,null,null,null,null,null,null,null,null,null,null,null,null,null,null,null,null,null,null,null,null,null,null,null,null,null,null,null,null,null,null,null,null,null,null,null,null,null,null,null,null,null,null,null,null,"Louisville",null,null,null,null,"X",null,null,null,null,null,null,null,null,"X",null,"X",null,null,"X",null,null,"X",null,"X",null,null,null,null,null,null,"X",null,null,null,null,null,null,null,null,null,"X",null,null,"X",null,null,null,null,null,null,null,null,null,null,null,null,"X",null,null,null,null,null,null,null,null,"X",null,null,null,null,null,null,"X",null,null,null,null,null,null,"X",null,null,null,null,null,null,null,"X",null,null,null,null,null,null,"X",null,null,null,null,null,null,null,null,null,null,null,null,null,null,null,null,null,"X",null,null,null,null,null,null,null,null,null,null,"X","X",null,null,null,null,null,null,null,null,null,null,null,null,null,null,null,null,null,null,null,null,null,null,null,null,null,null,null,null,"X",null,null,null,null,null,null,null,null,null,null,null,null,null,null,null,null,null,null,null,null,null,null,null,null,null,null,null,null,null,null,null,null,null,null,null,null,null,null,null,null,null,null,null,null,null,null,null,null,null,null,null,null,null,null,null,null,null,null,null,null,null,null,null,null,null,null,null,null,null,null,null,null,null,null,null,null,null,null,null,null,null,null,null,null,null,null,null,null,null,null,null,null,null,"X","X",null,null,null,null,"X",null,null,null,null,null,null,null,null,null,null,"X",null,"X",null,null,"X",null,null,null,null,null,null,null,null,"X",null,null,null,null,"X",null,null,null,"X"]
[null,null,null,null,null,null,null,null,null,null,null,null,null,null,null,null,null,null,null,null,null,null,null,null,null,null,null,null,null,null,null,null,null,null,null,null,null,null,null,null,null,null,null,null,null,null,null,null,null,null,null,null,null,null,null,null,null,null,null,null,null,null,null,null,null,null,null,null,null,null,null,null,null,null,null,null,null,null,null,null,null,null,null,null,null,null,null,null,null,null,null,null,null,null,null,null,null,null,null,null,null,null,null,"Chicago",null,null,null,null,null,null,null,null,null,null,null,null,"X",null,null,null,null,"X",null,"X","X",null,"X",null,null,null,null,"X",null,null,"X",null,null,null,null,null,null,"X",null,null,"X",null,null,"X",null,"X","X",null,null,null,null,null,null,null,null,"X","X",null,null,null,null,"X","X",null,null,"X","X",null,"X",null,null,"X",null,"X","X",null,null,"X","X",null,null,"X","X",null,null,"X","X",null,null,"X","X",null,null,"X","X",null,null,"X","X",null,null,null,null,null,null,"X","X",null,null,"X","X",null,"X",null,null,"X",null,"X","X",null,null,"X","X",null,null,"X",null,null,null,"X","X",null,null,"X","X",null,null,"X","X",null,null,"X","X",null,null,"X",null,"X",null,null,"X",null,null,"X",null,null,null,null,null,null,null,"X",null,"X","X",null,null,"X",null,"X",null,null,"X",null,null,"X",null,"X",null,"X",null,"X",null,"X",null,"X","X",null,null,"X",null,"X",null,"X",null,"X",null,"X","X",null,null,null,null,null,null,null,null,null,null,null,null,"X",null,null,null,"X",null,null,null,"x",null,null,null,"X",null,null,null,"X",null,null,null,"x",null,null,null,null,null,"X",null,null,null,null,null,"X",null,null,null,null,null,"X",null,null,null,"X",null,null,null,null,null,null,null,"X",null,null,null,"X",null,"X",null,"X",null,null,null,null,null,"X",null,"X",null,null,null,"X",null,null,null,"X",null,null,null,null,null,"X"]
[null,null,null,null,null,null,null,null,null,null,null,null,null,null,null,null,null,null,null,null,null,null,null,null,null,null,null,null,null,null,null,null,null,null,null,null,null,null,null,null,null,null,null,null,null,null,null,null,null,null,null,null,null,null,null,null,null,null,null,null,null,null,null,null,null,null,null,null,null,null,null,null,null,null,null,null,null,null,null,null,null,null,null,null,null,null,null,null,null,null,null,null,null,null,null,null,null,null,null,null,null,null,null,"Dearborn",null,null,null,null,null,null,null,null,null,null,null,null,null,null,null,null,null,null,null,null,null,null,"X",null,null,null,null,"X",null,"X",null,"X",null,null,"X",null,null,null,null,null,null,null,null,null,null,null,"X",null,null,null,null,null,null,"X","X",null,null,"X","X",null,null,"X","X",null,null,"X","X",null,null,null,null,"X","X",null,null,"X","X",null,null,"X","X",null,null,"X",null,null,"X",null,null,"X",null,"X",null,"X",null,"X","X",null,null,"X",null,null,null,null,null,null,null,null,"X",null,null,"X",null,null,null,null,"X",null,null,null,null,"X",null,null,"X",null,null,null,null,null,null,null,null,null,null,null,null,null,null,null,null,null,null,null,null,null,null,null,null,null,null,null,null,null,null,null,null,null,null,null,null,null,null,null,null,"X",null,null,"X",null,"X",null,null,"X","X",null,"X",null,null,null,null,null,null,null,null,null,null,null,null,null,null,null,null,null,null,"X",null,null,null,null,null,null,null,null,null,null,null,null,null,null,null,null,null,null,null,null,null,null,null,null,null,null,null,null,null,null,null,null,null,null,null,null,null,null,null,"X",null,null,"X",null,null,null,null,"X",null,null,"X",null,null,"X","X",null,null,null,null,null,null,null,null,null,null,null,null,null,null,null,null,null,null,null,null,null,null,null,null,null,"X",null,null,null,null,null,null,"X",null,null,"X",null,null,null,null,"X"]
[null,null,null,null,null,null,null,null,null,null,null,null,null,null,null,null,null,null,null,null,null,null,null,null,null,null,null,null,null,null,null,null,null,null,null,null,null,null,null,null,null,null,null,null,null,null,null,null,null,null,null,null,null,null,null,null,null,null,null,null,null,null,null,null,null,null,null,null,null,null,null,null,null,null,null,null,null,null,null,null,null,null,null,null,null,null,null,null,null,null,null,null,null,null,null,null,null,null,null,null,null,null,null,"Kansas City*",null,null,null,null,null,null,null,null,null,null,null,null,null,null,null,null,null,null,null,null,null,null,null,null,null,null,null,null,null,null,null,null,null,null,null,null,null,null,null,null,null,null,null,null,null,"X","X",null,null,null,null,null,"X",null,null,"X","X",null,null,"X","X",null,null,"X","X",null,null,"X",null,null,"X",null,null,"X","X",null,null,"X","X",null,null,"X","X",null,null,"X","X",null,null,"X","X",null,null,"X","X",null,null,"X","X",null,null,null,null,null,null,null,null,null,"X",null,null,"X","X",null,null,null,null,"X","X",null,null,"X","X",null,null,"X",null,null,null,null,null,null,null,null,null,null,null,null,null,null,null,null,null,null,null,null,null,null,null,null,null,null,null,null,null,null,null,null,null,null,null,null,null,null,null,null,null,null,null,null,null,null,null,null,null,null,null,null,null,null,null,null,null,null,null,null,null,null,null,null,null,null,null,null,"X",null,null,null,"X",null,null,null,null,null,null,null,null,null,null,null,null,null,null,null,null,null,null,null,null,null,null,null,null,null,null,null,null,"Super shifts not available pending approval of the E-Coat Cleaning Project*",null,null,null,null,null,null,null,null,null,null,null,null,null,null,null,"X",null,null,null,null,"X",null,null,null,null,null,null,null,null,null,null,null,null,null,"X",null,null,"X",null,null,null,null,null,null,null,null,null,null,null,null,null,"X",null,null,"X",null,null,null,null,"X",null,null,"X"]
[null,null,null,null,null,null,null,null,null,null,null,null,null,null,null,null,null,null,null,null,null,null,null,null,null,null,null,null,null,null,null,null,null,null,null,null,null,null,null,null,null,null,null,null,null,null,null,null,null,null,null,null,null,null,null,null,null,null,null,null,null,null,null,null,null,null,null,null,null,null,null,null,null,null,null,null,null,null,null,null,null,null,null,null,null,null,null,null,null,null,null,null,null,null,null,null,null,null,null,null,null,null,null,"NOTE:  3-Crew OT pattern is typically reflected by a 30-hour weekend schedule in the POPS report.  Saturday OT shifts are worked by the B-crew (afternoon shift) and Sunday OT shifts are worked by A-Crew (day shift).  C-crew's normal 40-hr work week includes a 10-hr shift on Saturday and Sunday.\n* Two month lead time after approved PO.  Project requires downtime to complete.  Alternative would require $50K funding per Super for accelerated E-Coat clean-out. (per GRL)"]
[]
[]
[]
[]
[]
[]
[]
[]
[]
[]
[]
[]
[]
[]
[]
[]
[]
[]
[]
[]
[]
[null,null,null,null,null,null,null,null,null,null,null,null,null,null,null,null,null,null,null,null,null,null,null,null,null,null,null,null,null,null,null,null,null,null,null,null,null,null,null,null,null,null,null,null,null,null,null,null,null,null,null,null,null,null,null,null,null,null,null,null,null,null,null,null,null,null,null,null,null,null,null,null,null,null,null,null,null,null,null,null,null,null,"CUM Rollover Threshold"]
[]
[]
[]
[null,null,null,null,null,null,null,null,null,null,null,null,null,null,null,null,null,null,null,null,null,null,null,null,null,null,null,null,null,null,null,null,null,null,null,null,null,null,null,null,null,null,null,null,null,null,null,null,null,null,null,null,null,null,null,null,null,null,null,null,null,null,null,null,null,null,null,null,null,null,null,null,null,null,null,null,null,null,null,null,null,null,"DOM","PLANT","VEHICLE","JPH","CUM\nRollover Hours","CUM\nRollover\nVolume","Comments"]
[null,null,null,null,null,null,null,null,null,null,null,null,null,null,null,null,null,null,null,null,null,null,null,null,null,null,null,null,null,null,null,null,null,null,null,null,null,null,null,null,null,null,null,null,null,null,null,null,null,null,null,null,null,null,null,null,null,null,null,null,null,null,null,null,null,null,null,null,null,null,null,null,null,null,null,null,null,null,null,null,null,null,"Araiza","Cuautitlan","Fiesta",35,2,{"$f":"ROUNDDOWN(CH167*CI167,0)","v":70}]
[null,null,null,null,null,null,null,null,null,null,null,null,null,null,null,null,null,null,null,null,null,null,null,null,null,null,null,null,null,null,null,null,null,null,null,null,null,null,null,null,null,null,null,null,null,null,null,null,null,null,null,null,null,null,null,null,null,null,null,null,null,null,null,null,null,null,null,null,null,null,null,null,null,null,null,null,null,null,null,null,null,null,null,"Hermosillo","Fusion",51,22.5,{"$f":"ROUNDDOWN(CH168*CI168,0)","v":1147},"17MY B/O"]
[null,null,null,null,null,null,null,null,null,null,null,null,null,null,null,null,null,null,null,null,null,null,null,null,null,null,null,null,null,null,null,null,null,null,null,null,null,null,null,null,null,null,null,null,null,null,null,null,null,null,null,null,null,null,null,null,null,null,null,null,null,null,null,null,null,null,null,null,null,null,null,null,null,null,null,null,null,null,null,null,null,null,null,null,"MKZ",12,22.5,270,"17MY B/O"]
[null,null,null,null,null,null,null,null,null,null,null,null,null,null,null,null,null,null,null,null,null,null,null,null,null,null,null,null,null,null,null,null,null,null,null,null,null,null,null,null,null,null,null,null,null,null,null,null,null,null,null,null,null,null,null,null,null,null,null,null,null,null,null,null,null,null,null,null,null,null,null,null,null,null,null,null,null,null,null,null,null,null,"Bobnar","Kentucky\nTruck","Super Duty",65.5,20,1310,"17MY B/O"]
[null,null,null,null,null,null,null,null,null,null,null,null,null,null,null,null,null,null,null,null,null,null,null,null,null,null,null,null,null,null,null,null,null,null,null,null,null,null,null,null,null,null,null,null,null,null,null,null,null,null,null,null,null,null,null,null,null,null,null,null,null,null,null,null,null,null,null,null,null,null,null,null,null,null,null,null,null,null,null,null,null,null,null,null,"Expedition",0,20,0]
[null,null,null,null,null,null,null,null,null,null,null,null,null,null,null,null,null,null,null,null,null,null,null,null,null,null,null,null,null,null,null,null,null,null,null,null,null,null,null,null,null,null,null,null,null,null,null,null,null,null,null,null,null,null,null,null,null,null,null,null,null,null,null,null,null,null,null,null,null,null,null,null,null,null,null,null,null,null,null,null,null,null,null,null,"Navigator",0,20,0]
[null,null,null,null,null,null,null,null,null,null,null,null,null,null,null,null,null,null,null,null,null,null,null,null,null,null,null,null,null,null,null,null,null,null,null,null,null,null,null,null,null,null,null,null,null,null,null,null,null,null,null,null,null,null,null,null,null,null,null,null,null,null,null,null,null,null,null,null,null,null,null,null,null,null,null,null,null,null,null,null,null,null,null,"Louisville","Escape",61,20,1220,"17MY B/O"]
[null,null,null,null,null,null,null,null,null,null,null,null,null,null,null,null,null,null,null,null,null,null,null,null,null,null,null,null,null,null,null,null,null,null,null,null,null,null,null,null,null,null,null,null,null,null,null,null,null,null,null,null,null,null,null,null,null,null,null,null,null,null,null,null,null,null,null,null,null,null,null,null,null,null,null,null,null,null,null,null,null,null,null,null,"MKC",10.8,20,216,"17MY B/O"]
[null,null,null,null,null,null,null,null,null,null,null,null,null,null,null,null,null,null,null,null,null,null,null,null,null,null,null,null,null,null,null,null,null,null,null,null,null,null,null,null,null,null,null,null,null,null,null,null,null,null,null,null,null,null,null,null,null,null,null,null,null,null,null,null,null,null,null,null,null,null,null,null,null,null,null,null,null,null,null,null,null,null,null,"Ohio","Econoline",28,10,280,"17MY B/O"]
[null,null,null,null,null,null,null,null,null,null,null,null,null,null,null,null,null,null,null,null,null,null,null,null,null,null,null,null,null,null,null,null,null,null,null,null,null,null,null,null,null,null,null,null,null,null,null,null,null,null,null,null,null,null,null,null,null,null,null,null,null,null,null,null,null,null,null,null,null,null,null,null,null,null,null,null,null,null,null,null,null,null,null,null,"Med. Truck",3.9,10,39,"17MY B/O"]
[null,null,null,null,null,null,null,null,null,null,null,null,null,null,null,null,null,null,null,null,null,null,null,null,null,null,null,null,null,null,null,null,null,null,null,null,null,null,null,null,null,null,null,null,null,null,null,null,null,null,null,null,null,null,null,null,null,null,null,null,null,null,null,null,null,null,null,null,null,null,null,null,null,null,null,null,null,null,null,null,null,null,null,null,"Super Duty",4.0999999999999996,10,41,"17MY B/O"]
[null,null,null,null,null,null,null,null,null,null,null,null,null,null,null,null,null,null,null,null,null,null,null,null,null,null,null,null,null,null,null,null,null,null,null,null,null,null,null,null,null,null,null,null,null,null,null,null,null,null,null,null,null,null,null,null,null,null,null,null,null,null,null,null,null,null,null,null,null,null,null,null,null,null,null,null,null,null,null,null,null,null,"Jowiski","Flat Rock","Mustang",37,20,{"$f":"ROUNDDOWN(CH178*CI178,0)","v":740},"17MY B/O"]
[null,null,null,null,null,null,null,null,null,null,null,null,null,null,null,null,null,null,null,null,null,null,null,null,null,null,null,null,null,null,null,null,null,null,null,null,null,null,null,null,null,null,null,null,null,null,null,null,null,null,null,null,null,null,null,null,null,null,null,null,null,null,null,null,null,null,null,null,null,null,null,null,null,null,null,null,null,null,null,null,null,null,null,null,"Continental",13,20,260,"17MY B/O"]
[null,null,null,null,null,null,null,null,null,null,null,null,null,null,null,null,null,null,null,null,null,null,null,null,null,null,null,null,null,null,null,null,null,null,null,null,null,null,null,null,null,null,null,null,null,null,null,null,null,null,null,null,null,null,null,null,null,null,null,null,null,null,null,null,null,null,null,null,null,null,null,null,null,null,null,null,null,null,null,null,null,null,null,"Michigan","Focus",55.2,0,0]
[null,null,null,null,null,null,null,null,null,null,null,null,null,null,null,null,null,null,null,null,null,null,null,null,null,null,null,null,null,null,null,null,null,null,null,null,null,null,null,null,null,null,null,null,null,null,null,null,null,null,null,null,null,null,null,null,null,null,null,null,null,null,null,null,null,null,null,null,null,null,null,null,null,null,null,null,null,null,null,null,null,null,null,null,"C-Max",5.3,0,0]
[null,null,null,null,null,null,null,null,null,null,null,null,null,null,null,null,null,null,null,null,null,null,null,null,null,null,null,null,null,null,null,null,null,null,null,null,null,null,null,null,null,null,null,null,null,null,null,null,null,null,null,null,null,null,null,null,null,null,null,null,null,null,null,null,null,null,null,null,null,null,null,null,null,null,null,null,null,null,null,null,null,null,null,"Oakville","Edge",47.9,20,958,"17MY B/O"]
[null,null,null,null,null,null,null,null,null,null,null,null,null,null,null,null,null,null,null,null,null,null,null,null,null,null,null,null,null,null,null,null,null,null,null,null,null,null,null,null,null,null,null,null,null,null,null,null,null,null,null,null,null,null,null,null,null,null,null,null,null,null,null,null,null,null,null,null,null,null,null,null,null,null,null,null,null,null,null,null,null,null,null,null,"MKX",9.9,20,198,"17MY B/O"]
[null,null,null,null,null,null,null,null,null,null,null,null,null,null,null,null,null,null,null,null,null,null,null,null,null,null,null,null,null,null,null,null,null,null,null,null,null,null,null,null,null,null,null,null,null,null,null,null,null,null,null,null,null,null,null,null,null,null,null,null,null,null,null,null,null,null,null,null,null,null,null,null,null,null,null,null,null,null,null,null,null,null,null,null,"Flex",7.2,5,36]
[null,null,null,null,null,null,null,null,null,null,null,null,null,null,null,null,null,null,null,null,null,null,null,null,null,null,null,null,null,null,null,null,null,null,null,null,null,null,null,null,null,null,null,null,null,null,null,null,null,null,null,null,null,null,null,null,null,null,null,null,null,null,null,null,null,null,null,null,null,null,null,null,null,null,null,null,null,null,null,null,null,null,null,null,"MKT",0.9,10,9]
[null,null,null,null,null,null,null,null,null,null,null,null,null,null,null,null,null,null,null,null,null,null,null,null,null,null,null,null,null,null,null,null,null,null,null,null,null,null,null,null,null,null,null,null,null,null,null,null,null,null,null,null,null,null,null,null,null,null,null,null,null,null,null,null,null,null,null,null,null,null,null,null,null,null,null,null,null,null,null,null,null,null,"Young","Chicago","Taurus",7.3,2,14]
[null,null,null,null,null,null,null,null,null,null,null,null,null,null,null,null,null,null,null,null,null,null,null,null,null,null,null,null,null,null,null,null,null,null,null,null,null,null,null,null,null,null,null,null,null,null,null,null,null,null,null,null,null,null,null,null,null,null,null,null,null,null,null,null,null,null,null,null,null,null,null,null,null,null,null,null,null,null,null,null,null,null,null,null,"Explorer",59,0.5,29]
[null,null,null,null,null,null,null,null,null,null,null,null,null,null,null,null,null,null,null,null,null,null,null,null,null,null,null,null,null,null,null,null,null,null,null,null,null,null,null,null,null,null,null,null,null,null,null,null,null,null,null,null,null,null,null,null,null,null,null,null,null,null,null,null,null,null,null,null,null,null,null,null,null,null,null,null,null,null,null,null,null,null,null,"Detroit","Motorhome",10.199999999999999,0,0]
[null,null,null,null,null,null,null,null,null,null,null,null,null,null,null,null,null,null,null,null,null,null,null,null,null,null,null,null,null,null,null,null,null,null,null,null,null,null,null,null,null,null,null,null,null,null,null,null,null,null,null,null,null,null,null,null,null,null,null,null,null,null,null,null,null,null,null,null,null,null,null,null,null,null,null,null,null,null,null,null,null,null,null,"Dearborn\nTruck","Non-Crew",13.5,2,27]
[null,null,null,null,null,null,null,null,null,null,null,null,null,null,null,null,null,null,null,null,null,null,null,null,null,null,null,null,null,null,null,null,null,null,null,null,null,null,null,null,null,null,null,null,null,null,null,null,null,null,null,null,null,null,null,null,null,null,null,null,null,null,null,null,null,null,null,null,null,null,null,null,null,null,null,null,null,null,null,null,null,null,null,null,"Crew",51.7,2,103]
[null,null,null,null,null,null,null,null,null,null,null,null,null,null,null,null,null,null,null,null,null,null,null,null,null,null,null,null,null,null,null,null,null,null,null,null,null,null,null,null,null,null,null,null,null,null,null,null,null,null,null,null,null,null,null,null,null,null,null,null,null,null,null,null,null,null,null,null,null,null,null,null,null,null,null,null,null,null,null,null,null,null,null,"Kansas City","Non-Crew",18,20,360,"17MY B/O"]
[null,null,null,null,null,null,null,null,null,null,null,null,null,null,null,null,null,null,null,null,null,null,null,null,null,null,null,null,null,null,null,null,null,null,null,null,null,null,null,null,null,null,null,null,null,null,null,null,null,null,null,null,null,null,null,null,null,null,null,null,null,null,null,null,null,null,null,null,null,null,null,null,null,null,null,null,null,null,null,null,null,null,null,null,"Crew",41.3,20,826,"17MY B/O"]
[null,null,null,null,null,null,null,null,null,null,null,null,null,null,null,null,null,null,null,null,null,null,null,null,null,null,null,null,null,null,null,null,null,null,null,null,null,null,null,null,null,null,null,null,null,null,null,null,null,null,null,null,null,null,null,null,null,null,null,null,null,null,null,null,null,null,null,null,null,null,null,null,null,null,null,null,null,null,null,null,null,null,null,null,"Transit",38,20,760,"17MY B/O"]
[null,null,null,null,null,null,null,null,null,null,null,null,null,null,null,null,null,null,null,null,null,null,null,null,null,null,null,null,null,null,null,null,null,null,null,null,null,null,null,null,null,null,null,null,null,null,null,null,null,null,null,null,null,null,null,null,null,null,null,null,null,null,null,null,null,null,null,null,null,null,null,null,null,null,null,null,null,null,null,null,null,null,"CUM Rollover (CRO) Function: The CRO Threshold determines how many units will hold in the next day's Schedule and Material Release due to a production loss at the plant.  (NOTE:  this applies to losses reported via DPR only.  Losses reported via a Production Reduction/Shutdown Notice are processed differently).\n\nSpecial consideration of plant bull-pen capabilities should be included whn setting the CRO threshold to minimize risk of stocking material at outside holding areas.  \n  \nEach Op Plan analyst develops the CRO Threshold with input from the assembly plant.  The CRO Threshold should reflect the plant's near-term makeup capability, based on current events within their schedule (IE:  launch, balance out, open assembly/supply capacity).  If managed correctly, the CRO Threshold minimizes the day-to-day manipulation of the Op Plan schedule.  \n\nThe CRO Threshold tool supports material release stability and reduced inventory levels.     "]

{"sheet":"Roll Weeks","index":2,"n_rows":13,"n_cols":3,"rows_kept":13,"cut":false,"hidden":true,"merged":[]}
["1.  Go to W drive…\"Reports\""]
["2.  Open desired file"]
["3.  Save file as new  program release number (eg. 643-1,  643-2, etc.)"]
["4.  Go to \"Tools\", then  \"Macro\""]
["5.  Click on \"ToplanRollWeeks\"….buttons on right will become active."]
["6.  Click on \"Run\""]
[null,"> ","Macro rolls weeks for all plants."]
[null,"> ","Check the calendar for holidays … note when appropriate"]
["7.  Revisions:"]
[null,"> ","Delete all boxes for previous week's changes."]
[null,"> ","Delete any color from previous week's updates."]
[null,"> ","Delete footnotes that applied to the week that dropped off"]
["8.  Review plant mixes/material protection summaries … be sure beginning months are appropriate"]

{"sheet":"14 CY Downweeks","index":3,"n_rows":33,"n_cols":18,"rows_kept":33,"cut":false,"hidden":true,"merged":[[0,1,0,9],[0,10,0,12],[0,15,0,17]]}
[null,"2014 CY",null,null,null,null,null,null,null,null,null,null,null,null,"2014 CY","Memo:"]
[null,"Jan","Feb","Mar","Apr","May","Jun","Jul","Aug","Sep","Oct","Nov","Dec","Oct-Dec","Total 14 CY","Mfg/Fac","Sales D/W","Vac"]
["FRAP",3,null,2,1,null,2,null,1,null,null,null,null,{"$f":"SUM(K3:M3)","v":0},{"$f":"SUM(B3:M3)","v":9},1,7,1]
[null,null,null,null,null,null,null,null,null,null,null,null,null,{"$f":"SUM(K4:M4)","v":0},{"$f":"SUM(B4:M4)","v":0}]
[" Chicago",null,null,null,null,null,1,null,null,null,null,null,null,0,1,null,null,1]
[null,null,null,null,null,null,null,null,null,null,null,null,null,0,0]
[" Cuautitlan",null,1,null,1,1,1,1,1,1,1,null,null,1,8,null,6,2]
[null,null,null,null,null,null,null,null,null,null,null,null,null,0,0]
[" Dearborn",1,null,null,null,null,null,null,null,4,null,null,null,0,5,5]
[null,null,null,null,null,null,null,null,null,null,null,null,null,0,0]
[" Det. Chas.",null,null,null,null,1,null,2,null,null,null,null,null,0,3,null,2,2]
[null,null,null,null,null,null,null,null,null,null,null,null,null,0,0]
[" Hermosillo",null,null,null,2,null,null,3,null,null,1,1,null,2,7,null,5,2]
[null,null,null,null,null,null,null,null,null,null,null,null,null,0,0]
[" Kansas City - Transit",null,null,null,null,null,null,null,null,null,null,null,null,0,0]
[" Kansas City - Trk",1,null,null,null,null,null,null,null,null,null,null,null,0,1,1]
[null,null,null,null,null,null,null,null,null,null,null,null,null,0,0]
[" Ky. Truck",1,null,null,null,null,null,1,null,null,null,null,null,0,2,null,null,1]
[null,null,null,null,null,null,null,null,null,null,null,null,null,0,0]
[" Louisville",null,null,null,null,null,null,1,null,null,null,null,null,0,1,null,null,1]
[null,null,null,null,null,null,null,null,null,null,null,null,null,0,0]
[" Oakville",null,null,3,1,null,null,null,null,null,null,null,null,0,4,4]
[null,null,null,null,null,null,null,null,null,null,null,null,null,0,0]
[" Ohio ",null,null,null,null,null,null,5,null,null,null,null,null,0,5,3,null,2]
[null,null,null,null,null,null,null,null,null,null,null,null,null,0,0]
[" St. Thomas",null,null,null,null,null,null,null,null,null,null,null,null,0,0]
[null,null,null,null,null,null,null,null,null,null,null,null,null,0,0]
["Louisville",null,null,null,null,null,null,null,null,null,null,null,null,0,0]
[null,null,null,null,null,null,null,null,null,null,null,null,null,0,0]
["MAP",null,1,null,2,2,null,1,2,null,2,1,null,3,11,1,8,2]
[null,null,null,null,null,null,null,null,null,null,null,null,null,0,0]
[null,null,null,null,null,null,null,null,null,null,null,null,"Total Downweeks  ",{"$f":"SUM(N3:N31)","v":6},{"$f":"SUM(O3:O31)","v":57},{"$f":"SUM(P3:P31)","v":15},{"$f":"SUM(Q3:Q31)","v":28},{"$f":"SUM(R3:R31)","v":14}]
[null,null,null,null,null,null,null,null,null,null,null,"*Excludes Christmas shutdown"]

{"sheet":"15 CY Downweeks","index":6,"n_rows":34,"n_cols":19,"rows_kept":34,"cut":false,"hidden":true,"merged":[[0,1,0,9],[0,10,0,12],[0,15,0,17]]}
[null,"2015 CY",null,null,null,null,null,null,null,null,null,null,null,null,"2015 CY","Memo:"]
[null,"Jan","Feb","Mar","Apr","May","Jun","Jul","Aug","Sep","Oct","Nov","Dec","Oct-Dec","Total 15 CY","Mfg/Fac","Sales D/W","Vac"]
["FRAP",null,null,null,null,null,2,2,null,null,null,2,null,{"$f":"SUM(K3:M3)","v":2},{"$f":"SUM(B3:M3)","v":6},2,2,2]
[null,null,null,null,null,null,null,null,null,null,null,null,null,{"$f":"SUM(K4:M4)","v":0},{"$f":"SUM(B4:M4)","v":0}]
[" Chicago",null,null,null,null,null,null,1,null,null,null,null,null,0,1,null,null,1]
[null,null,null,null,null,null,null,null,null,null,null,null,null,0,0]
[" Cuautitlan",1,1,2,null,null,null,1,2,2,null,0,1,1,10,2,6,2]
[null,null,null,null,null,null,null,null,null,null,null,null,null,0,0]
[" Dearborn",null,null,null,null,null,null,1,null,null,null,null,null,0,1,null,null,1]
[null,null,null,null,null,null,null,null,null,null,null,null,null,0,0]
[" Det. Chas.",1,1,null,1,null,1,1,1,null,null,"1*","1*",0,{"$f":"SUM(B11:M11)+2","v":8},2,4,2,"*Constraint"]
[null,null,null,null,null,null,null,null,null,null,null,null,null,0,0]
[" Hermosillo",1,null,null,null,0.5,null,2,null,null,null,1,null,1,4.5,null,5,2,"May down week partial"]
[null,null,null,null,null,null,null,null,null,null,null,null,null,0,0]
[" Kansas City - Transit",null,1,null,null,null,null,2,null,null,1,null,null,1,4,null,3,2]
[" Kansas City - Trk",4,2,null,null,null,null,1,null,null,null,null,null,0,7,6,null,1]
[null,null,null,null,null,null,null,null,null,null,null,null,null,0,0]
[" Ky. Truck",null,null,null,null,null,null,3,null,null,null,null,null,0,3,1,null,2]
[null,null,null,null,null,null,null,null,null,null,null,null,null,0,0]
[" Louisville",null,null,null,null,null,null,1,null,null,null,null,null,0,1,null,null,1]
[null,null,null,null,null,null,null,null,null,null,null,null,null,0,0]
[" Oakville",2,null,null,null,null,null,null,null,null,null,null,null,0,2,2]
[null,null,null,null,null,null,null,null,null,null,null,null,null,0,0]
[" Ohio ",null,null,null,null,null,null,2,null,null,null,null,null,0,2,null,null,2]
[null,null,null,null,null,null,null,null,null,null,null,null,null,0,0]
[" St. Thomas",null,null,null,null,null,null,null,null,null,null,null,null,0,0]
[null,null,null,null,null,null,null,null,null,null,null,null,null,0,0]
["Louisville",null,null,null,null,null,null,null,null,null,null,null,null,0,0]
[null,null,null,null,null,null,null,null,null,null,null,null,null,0,0]
["MAP",1,null,null,1,null,1,1,null,null,2,null,null,2,6,null,4,2]
[null,null,null,null,null,null,null,null,null,null,null,null,null,0,0]
[null,null,null,null,null,null,null,null,null,null,null,null,"Total Downweeks  ",{"$f":"SUM(N3:N31)","v":7},{"$f":"SUM(O3:O31)","v":55.5},{"$f":"SUM(P3:P31)","v":15},{"$f":"SUM(Q3:Q31)","v":24},{"$f":"SUM(R3:R31)","v":20}]
[null,null,null,null,null,null,null,null,null,null,null,"*Excludes Christmas shutdown"]
[null,null,null,null,null,null,null,null,null,null,null,"*Does not include material protected down weeks"]

{"sheet":"16 CY Downweeks","index":7,"n_rows":35,"n_cols":18,"rows_kept":35,"cut":false,"hidden":true,"merged":[[0,1,0,9],[0,10,0,12],[0,15,0,17]]}
[null,"2016 CY",null,null,null,null,null,null,null,null,null,null,null,null,"2016 CY","Memo:"]
[null,"Jan","Feb","Mar","Apr","May","Jun","Jul","Aug","Sep","Oct","Nov","Dec","Oct-Dec","Total 16 CY","Mfg/Fac","Sales D/W","Vac"]
["FRAP",null,null,null,null,null,null,1,1,null,1,null,null,{"$f":"SUM(K3:M3)","v":1},{"$f":"SUM(B3:M3)","v":3},1,null,2]
[null,null,null,null,null,null,null,null,null,null,null,null,null,{"$f":"SUM(K4:M4)","v":0},{"$f":"SUM(B4:M4)","v":0}]
[" Chicago",null,null,null,null,null,null,1,null,null,null,null,null,0,1,null,null,1]
[null,null,null,null,null,null,null,null,null,null,null,null,null,0,0]
[" Cuautitlan",null,1,1,1,2,2,1,1,1,1,1,null,2,12,1,8,4]
[null,null,null,null,null,null,null,null,null,null,null,null,null,0,0]
[" Dearborn",null,null,null,null,null,null,null,null,null,null,null,null,0,0]
[null,null,null,null,null,null,null,null,null,null,null,null,null,0,0]
[" Det. Chas.",1,null,null,null,null,null,1,1,null,1,1,1,3,6,null,1,2]
[null,null,null,null,null,null,null,null,null,null,null,null,null,0,0]
[" Hermosillo",null,null,null,null,1,null,1,1,2,2,"4**",null,2,{"$f":"SUM(B13:M13)&\"/4**\"","v":"7/4**"},null,"5/4**",2]
[null,null,null,null,null,null,null,null,null,null,null,null,null,0,0]
[" Kansas City - Transit",null,null,null,null,null,null,2,null,null,null,null,null,0,2,null,null,2]
[" Kansas City - Trk",null,null,null,null,1,null,null,"2**","1**","4**","1**",null,0,"1/8**",null,"1/8**"]
[null,null,null,null,null,null,null,null,null,null,null,null,null,0,0]
[" Ky. Truck",null,null,null,null,null,null,1,null,null,null,null,null,0,1,null,null,1]
[null,null,null,null,null,null,null,null,null,null,null,null,null,0,0]
[" Louisville",null,null,null,null,null,null,1,null,null,1,1,null,2,3,null,2,1]
[null,null,null,null,null,null,null,null,null,null,null,null,null,0,0]
[" Oakville",null,null,null,null,null,null,1,null,null,null,null,null,0,1,null,null,1]
[null,null,null,null,null,null,null,null,null,null,null,null,null,0,0]
[" Ohio ",null,null,null,null,null,1,1,null,null,null,null,null,0,2,null,null,2]
[null,null,null,null,null,null,null,null,null,null,null,null,null,0,0]
[" St. Thomas",null,null,null,null,null,null,null,null,null,null,null,null,0,0]
[null,null,null,null,null,null,null,null,null,null,null,null,null,0,0]
["Louisville",null,null,null,null,null,null,null,null,null,null,null,null,0,0]
[null,null,null,null,null,null,null,null,null,null,null,null,null,0,0]
["MAP",null,null,1,null,null,null,2,2,2,2,null,2,4,11,null,9,2]
[null,null,null,null,null,null,null,null,null,null,null,null,null,0,0]
[null,null,null,null,null,null,null,null,null,null,null,null,"Total Downweeks  ",{"$f":"SUM(N3:N31)","v":14},{"$f":"SUM(O3:O31)","v":42}]
[null,null,null,null,null,null,null,null,null,null,null,"*Excludes Christmas shutdown"]
[null,null,null,null,null,null,null,null,null,null,null,"*Does not include material protected down weeks"]
[null,null,null,null,null,null,null,null,null,null,null,"** Kansas City Trk & Hermosillo - indicates downcrew weeks"]

{"sheet":"OP LTR","index":8,"n_rows":126,"n_cols":86,"rows_kept":126,"cut":false,"hidden":false,"merged":[[53,0,53,1],[34,0,34,1],[38,0,38,1],[1,0,1,2],[0,0,0,2],[22,0,22,1],[26,0,26,1],[30,0,30,1],[6,0,6,1],[2,0,2,1],[18,0,18,1],[14,0,14,1],[10,0,10,1],[7,2,9,2],[3,2,5,2]]}
["Recap of North American Operating Plan Changes"]
[{"$f":"'OP PLAN'!A2","v":"2017-08-14"}]
["Fiesta"]
["Cuautitlan"]
[]
[]
["Fusion / MKZ"]
["Hermosillo",null,"Variance the weeks of 1/1 (+35 hrs), 1/8 (+22 hrs), 1/15 (-30 hrs), 1/22 (+29 hrs) due to resetting 18CY back to 3 shift plan"]
[]
[]
["Exp/Nav/Superduty"]
["Kentucky Truck"]
[]
[]
["Escape / MKC"]
["Louisville"]
[]
[]
["Econoline / Med Duty / Super Duty"]
["Ohio"]
[]
[]
["Mustang / Conti"]
["Flat Rock"]
[]
[]
["Focus / C-Max"]
["Michigan"]
[null,null,"Loss recovery of 464 units on 8/10 -- +10 units per day from 8/14 through 10/5. (Overspeed)  Exceptions of 11 units per day on 8/15, 8/29, 9/6 and 9/19.  10/3, +60 units (1 hr), 11/6 +50 units (.83 hr), 11/14 +60 units (1hr),12/5 +60 units (1hr), 2018 MY MP2 slides 210 units on 10/9."]
[]
["Edge/MKX/Flex/MKT"]
["Oakville",null,"Variance the weeks of 8/21-12/18 (-1 hrs/wk) (-20hrs total) "]
[]
[]
["Taurus / MKS/ Explorer"]
["Chicago",null,"Variance the week of 10/30 (+8 hrs) & 11/6 (+7 hrs) due to production loss make-up"]
[]
[]
["MOTORHOME"]
["DCP",null,"Recalendarized the CIWG meetings from the weeks of 11/6 and 12/4 to the weeks of 10/30 and 11/27."]
[]
[]
["F-Series U/8500"]
["Dearborn Truck"]
[]
[]
[]
["Kansas City"]
[null,null,"Variance w/o 9/11 (+10hrs) due to adding a super shift"]
[null,null,"Variance w/o 9/18 (-10hrs) due to removing a super shift"]
[]
[]
[]
["Transit"]
["Kansas City",null,"Variance w/o 9/25 (-80hrs) - added sales DW"]
[null,null,"Variance in current week due to removing 61 units from 8/11."]
[null,null,"Spread the 61 units from 8/11 into the days of 8/14, 8/21, 8/22 and 8/23, per plant request."]
[]
[]
[]
[]
[]
[]
[]
[]
[]
[]
[]
[]
[]
[]
[]
[]
[]
[]
[]
[]
[]
[]
[]
[]
[]
[]
[]
[]
[]
[]
[]
[]
[]
[]
[]
[]
[]
[]
[]
[]
[]
[]
[]
[]
[]
[]
[]
[]
[]
[]
[]
[]
[]
[]
[]
[]
[]
[]
[]
[]
[]
[]
[]
[]
[]
[]
[]
[]
[null,null,null,null,null,null,null,null,null,null,null,null,null,null,null,null,null,null,null,null,null,null,null,null,null,null,null,null,null,null,null,null,null,null,null,null,null,null,null,null,null,null,null,null,null,null,null,null,null,null,null,null,null,null,null,null,null,null,null,null,null,null,null,null,null,null,null,null,null,null,null,null,null,null,null,null,null,null,null,null,null,null,null,null,null,0.73]

{"sheet":"17 CY Downweeks","index":9,"n_rows":35,"n_cols":18,"rows_kept":35,"cut":false,"hidden":false,"merged":[[0,1,0,9],[0,10,0,12],[0,15,0,17]]}
[null,"2017 CY",null,null,null,null,null,null,null,null,null,null,null,null,"2017 CY","Memo:"]
[null,"Jan","Feb","Mar","Apr","May","Jun","Jul","Aug","Sep","Oct","Nov","Dec","Oct-Dec","Total 17 CY","Mfg/Fac","Sales D/W","Vac"]
["FRAP",null,null,null,null,null,null,2,null,1,null,1,null,{"$f":"SUM(K3:M3)","v":1},{"$f":"SUM(B3:M3)","v":4},0,2,2]
[null,null,null,null,null,null,null,null,null,null,null,null,null,{"$f":"SUM(K4:M4)","v":0},{"$f":"SUM(B4:M4)","v":0}]
[" Chicago",null,null,null,null,null,null,2,null,null,null,null,null,0,2,null,null,2]
[null,null,null,null,null,null,null,null,null,null,null,null,null,0,0]
[" Cuautitlan",null,null,null,null,null,null,2,1,1,1,1,null,2,6,null,4,2]
[null,null,null,null,null,null,null,null,null,null,null,null,null,0,0]
[" Dearborn",null,null,null,null,null,null,null,null,null,null,null,null,0,0,null,null,2]
[null,null,null,null,null,null,null,null,null,null,null,null,null,0,0]
[" Det. Chas.",null,null,null,null,null,null,1,1,null,null,null,null,0,2,null,null,2]
[null,null,null,null,null,null,null,null,null,null,null,null,null,0,0]
[" Hermosillo","2**","1.8**","0.2**",null,"1**","1+1**","1+1**","1**","2**","1.5**","2**","1.5**",0,17,null,15,2]
[null,null,null,null,null,null,null,null,null,null,null,null,null,0,0]
[" Kansas City - Transit",1,null,null,null,null,null,null,null,1,null,null,null,0,2,null,null,2]
[" Kansas City - Trk",1,"1***",null,null,null,null,null,null,null,null,null,null,0,1,null,null,2]
[null,null,null,null,null,null,null,null,null,null,null,null,null,0,0]
[" Ky. Truck",null,null,null,null,null,null,2,null,null,null,null,null,0,2,null,null,2]
[null,null,null,null,null,null,null,null,null,null,null,null,null,0,0]
[" Louisville",null,null,null,null,null,null,1,null,null,null,null,null,0,1,null,null,1]
[null,null,null,null,null,null,null,null,null,null,null,null,null,0,0]
[" Oakville",null,null,null,null,null,null,2,null,null,null,null,null,0,2,null,null,2]
[null,null,null,null,null,null,null,null,null,null,null,null,null,0,0]
[" Ohio ",null,null,null,null,null,null,2,null,null,null,null,null,0,2,null,null,2]
[null,null,null,null,null,null,null,null,null,null,null,null,null,0,0]
[" St. Thomas",null,null,null,null,null,null,null,null,null,null,null,null,0,0]
[null,null,null,null,null,null,null,null,null,null,null,null,null,0,0]
["Louisville",null,null,null,null,null,null,null,null,null,null,null,null,0,0]
[null,null,null,null,null,null,null,null,null,null,null,null,null,0,0]
["MAP",2,2,1,null,null,null,2,1,1,null,1,1,2,11,2,7,2]
[null,null,null,null,null,null,null,null,null,null,null,null,null,0,0]
[null,null,null,null,null,null,null,null,null,null,null,null,"Total Downweeks  ",{"$f":"SUM(N3:N31)","v":5},{"$f":"SUM(O3:O31)","v":52}]
[null,null,null,null,null,null,null,null,null,null,null,"*Excludes Christmas shutdown"]
[null,null,null,null,null,null,null,null,null,null,null,"*Does not include material protected down weeks"]
[null,null,null,null,null,null,null,null,null,null,null,"**Hermosillo - down days scheduled totaling to 4.4 weeks in 1 and 2Q; totaling to 7.5 weeks in 3 and 4Q."]